Department,Entity, Transaction Date, Expense Type, Expense Area, Supplier Name,Transaction number, Amount
FCDO,CSC,01/12/2023,Scholar Allowances,Award Costs,Scholar,PIN066110,600
FCDO,CSC,01/12/2023,Scholar Allowances,Award Costs,Scholar,PIN066114,600
FCDO,CSC,05/12/2023,Secretariat Service Provision,Programme Costs,Scholar,NOM001295,312
FCDO,CSC,05/12/2023,Secretariat Service Provision,Programme Costs,Scholar,NOM001295,491.5
FCDO,CSC,05/12/2023,Secretariat Service Provision,Programme Costs,Scholar,NOM001295,4078.07
FCDO,CSC,08/12/2023,Scholar Allowances,Award Costs,Royal Veterinary College,PIN066196,536.7
FCDO,CSC,08/12/2023,Tuition Fee,Award Costs,Royal Veterinary College,PIN066196,18000
FCDO,CSC,08/12/2023,Scholar Allowances,Award Costs,Royal Veterinary College,PIN066195,500
FCDO,CSC,08/12/2023,Scholar Travel,Award Costs,Royal Veterinary College,PIN066195,1186.62
FCDO,CSC,08/12/2023,Tuition Fee,Award Costs,Univ of Central Lancashire,PIN066274,10500
FCDO,CSC,08/12/2023,Tuition Fee,Award Costs,The University of Edinburgh,PIN066219,1010
FCDO,CSC,08/12/2023,Tuition Fee,Award Costs,The University of Edinburgh,PIN066222,2015
FCDO,CSC,08/12/2023,Tuition Fee,Award Costs,The University of Edinburgh,PIN066220,2870
FCDO,CSC,08/12/2023,Tuition Fee,Award Costs,The University of Edinburgh,PIN066221,1010
FCDO,CSC,08/12/2023,Tuition Fee,Award Costs,The University of Edinburgh,PIN066223,2015
FCDO,CSC,08/12/2023,Tuition Fee,Award Costs,The University of Edinburgh,PIN066225,1010
FCDO,CSC,08/12/2023,Tuition Fee,Award Costs,The University of Edinburgh,PIN066231,1010
FCDO,CSC,08/12/2023,Tuition Fee,Award Costs,The University of Edinburgh,PIN066232,1010
FCDO,CSC,08/12/2023,Tuition Fee,Award Costs,The University of Edinburgh,PIN066228,2285
FCDO,CSC,08/12/2023,Tuition Fee,Award Costs,The University of Edinburgh,PIN066229,1010
FCDO,CSC,08/12/2023,Tuition Fee,Award Costs,The University of Edinburgh,PIN066230,1010
FCDO,CSC,08/12/2023,Tuition Fee,Award Costs,The University of Edinburgh,PIN066233,1010
FCDO,CSC,08/12/2023,Scholar Travel,Award Costs,Edge Hill University,PIN066147,1182.38
FCDO,CSC,08/12/2023,Tuition Fee,Award Costs,The University of Edinburgh,PIN066227,1010
FCDO,CSC,08/12/2023,Tuition Fee,Award Costs,The University of Edinburgh,PIN066226,1010
FCDO,CSC,08/12/2023,Tuition Fee,Award Costs,The University of Edinburgh,PIN066212,1010
FCDO,CSC,08/12/2023,Tuition Fee,Award Costs,The University of Edinburgh,PIN066208,2015
FCDO,CSC,08/12/2023,Tuition Fee,Award Costs,The University of Edinburgh,PIN066215,2015
FCDO,CSC,08/12/2023,Tuition Fee,Award Costs,The University of Edinburgh,PIN066210,1010
FCDO,CSC,08/12/2023,Tuition Fee,Award Costs,The University of Edinburgh,PIN066211,1010
FCDO,CSC,08/12/2023,Tuition Fee,Award Costs,The University of Edinburgh,PIN066213,1010
FCDO,CSC,08/12/2023,Tuition Fee,Award Costs,The University of Edinburgh,PIN066214,1010
FCDO,CSC,08/12/2023,Tuition Fee,Award Costs,The University of Edinburgh,PIN066209,1010
FCDO,CSC,08/12/2023,Tuition Fee,Award Costs,Lond Sch Hygiene & Tropical Me,PIN066151,4511.36
FCDO,CSC,08/12/2023,Tuition Fee,Award Costs,University of Strathclyde,PIN066250,4900
FCDO,CSC,08/12/2023,Tuition Fee,Award Costs,University of Leicester,PIN066159,17500
FCDO,CSC,08/12/2023,Tuition Fee,Award Costs,University of Leicester,PIN066161,21850
FCDO,CSC,08/12/2023,Tuition Fee,Award Costs,The University of Warwick,PIN066163,22500
FCDO,CSC,08/12/2023,Tuition Fee,Award Costs,The University of Warwick,PIN066165,22500
FCDO,CSC,08/12/2023,Tuition Fee,Award Costs,The University of Warwick,PIN066167,18000
FCDO,CSC,08/12/2023,Tuition Fee,Award Costs,The University of York,PIN066241,14773
FCDO,CSC,08/12/2023,Award Support Costs,Award Costs,University College London,PIN066245,4900
FCDO,CSC,08/12/2023,Tuition Fee,Award Costs,The University of Warwick,PIN066169,22500
FCDO,CSC,08/12/2023,Tuition Fee,Award Costs,University of Strathclyde,PIN066207,4900
FCDO,CSC,08/12/2023,Tuition Fee,Award Costs,Aberystwyth University,PIN066259,2700
FCDO,CSC,08/12/2023,Tuition Fee,Award Costs,Aberystwyth University,PIN066260,2700
FCDO,CSC,08/12/2023,Tuition Fee,Award Costs,University of Hull,PIN066150,10000
FCDO,CSC,08/12/2023,Tuition Fee,Award Costs,University of Hull,PIN066153,10000
FCDO,CSC,08/12/2023,Tuition Fee,Award Costs,Aberystwyth University,PIN066247,2700
FCDO,CSC,08/12/2023,Tuition Fee,Award Costs,Bangor University,PIN066249,41188.85
FCDO,CSC,08/12/2023,Award Support Costs,Award Costs,University of Aberdeen,PIN066186,5000
FCDO,CSC,08/12/2023,Tuition Fee,Award Costs,University of Aberdeen,PIN066186,18000
FCDO,CSC,08/12/2023,Tuition Fee,Award Costs,University of Hull,PIN066148,14000
FCDO,CSC,08/12/2023,Tuition Fee,Award Costs,Swansea University,PIN066192,15120
FCDO,CSC,08/12/2023,Tuition Fee,Award Costs,Swansea University,PIN066193,16480
FCDO,CSC,08/12/2023,Tuition Fee,Award Costs,Aberystwyth University,PIN066251,2700
FCDO,CSC,08/12/2023,Tuition Fee,Award Costs,The University of Salford,PIN066216,1490
FCDO,CSC,08/12/2023,Scholar Allowances,Award Costs,The University of Edinburgh,PIN066270,3000
FCDO,CSC,08/12/2023,Award Support Costs,Award Costs,University of Strathclyde,PIN066190,5000
FCDO,CSC,08/12/2023,Tuition Fee,Award Costs,University of Stirling,PIN066140,14220
FCDO,CSC,08/12/2023,Tuition Fee,Award Costs,Balliol College Oxford,PIN066242,18000
FCDO,CSC,08/12/2023,Tuition Fee,Award Costs,University of Stirling,PIN066130,21845
FCDO,CSC,08/12/2023,Tuition Fee,Award Costs,University of Stirling,PIN066137,19645
FCDO,CSC,08/12/2023,Tuition Fee,Award Costs,University of Stirling,PIN066146,21845
FCDO,CSC,08/12/2023,Tuition Fee,Award Costs,University of Bristol,PIN066197,4500
FCDO,CSC,08/12/2023,Tuition Fee,Award Costs,University of Stirling,PIN066126,22500
FCDO,CSC,08/12/2023,Tuition Fee,Award Costs,University of Stirling,PIN066139,17120
FCDO,CSC,08/12/2023,Tuition Fee,Award Costs,University of Stirling,PIN066142,21845
FCDO,CSC,08/12/2023,Tuition Fee,Award Costs,University of Stirling,PIN066144,22500
FCDO,CSC,08/12/2023,Award Support Costs,Award Costs,University of Hull,PIN066155,5000
FCDO,CSC,08/12/2023,Tuition Fee,Award Costs,The University of York,PIN066171,17800
FCDO,CSC,08/12/2023,Tuition Fee,Award Costs,Swansea University,PIN066191,17840
FCDO,CSC,08/12/2023,Tuition Fee,Award Costs,St Cross College Oxford,PIN066194,18000
FCDO,CSC,08/12/2023,Tuition Fee,Award Costs,Loughborough University,PIN066125,-1637.96
FCDO,CSC,08/12/2023,Tuition Fee,Award Costs,Loughborough University,PIN066127,1819.95
FCDO,CSC,08/12/2023,Tuition Fee,Award Costs,Loughborough University,PIN066128,-1559.93
FCDO,CSC,08/12/2023,Tuition Fee,Award Costs,Loughborough University,PIN066129,-1559.93
FCDO,CSC,08/12/2023,Tuition Fee,Award Costs,Loughborough University,PIN066131,1819.95
FCDO,CSC,08/12/2023,Tuition Fee,Award Costs,Loughborough University,PIN066132,-1559.93
FCDO,CSC,08/12/2023,Tuition Fee,Award Costs,Loughborough University,PIN066133,-1559.93
FCDO,CSC,08/12/2023,Tuition Fee,Award Costs,Loughborough University,PIN066134,-1637.96
FCDO,CSC,08/12/2023,Tuition Fee,Award Costs,Loughborough University,PIN066138,1733.25
FCDO,CSC,08/12/2023,Tuition Fee,Award Costs,Loughborough University,PIN066141,-1687.5
FCDO,CSC,08/12/2023,Tuition Fee,Award Costs,Loughborough University,PIN066143,1733.25
FCDO,CSC,08/12/2023,Tuition Fee,Award Costs,Loughborough University,PIN066145,1733.25
FCDO,CSC,08/12/2023,Tuition Fee,Award Costs,Loughborough University,PIN066154,1733.25
FCDO,CSC,08/12/2023,Tuition Fee,Award Costs,Loughborough University,PIN066160,1875
FCDO,CSC,08/12/2023,Tuition Fee,Award Costs,Loughborough University,PIN066162,1875
FCDO,CSC,08/12/2023,Tuition Fee,Award Costs,Loughborough University,PIN066173,1733.25
FCDO,CSC,08/12/2023,Tuition Fee,Award Costs,Loughborough University,PIN066174,1733.25
FCDO,CSC,08/12/2023,Tuition Fee,Award Costs,Loughborough University,PIN066175,1733.25
FCDO,CSC,08/12/2023,Tuition Fee,Award Costs,Loughborough University,PIN066176,1819.95
FCDO,CSC,08/12/2023,Tuition Fee,Award Costs,Loughborough University,PIN066177,-1559.93
FCDO,CSC,08/12/2023,Tuition Fee,Award Costs,Loughborough University,PIN066178,-1637.96
FCDO,CSC,08/12/2023,Tuition Fee,Award Costs,Loughborough University,PIN066179,-1559.93
FCDO,CSC,08/12/2023,Tuition Fee,Award Costs,Loughborough University,PIN066180,-1637.96
FCDO,CSC,08/12/2023,Tuition Fee,Award Costs,Loughborough University,PIN066182,1733.25
FCDO,CSC,08/12/2023,Tuition Fee,Award Costs,Loughborough University,PIN066183,1819.95
FCDO,CSC,08/12/2023,Tuition Fee,Award Costs,Loughborough University,PIN066184,1733.25
FCDO,CSC,08/12/2023,Tuition Fee,Award Costs,Loughborough University,PIN066185,-1559.93
FCDO,CSC,08/12/2023,Tuition Fee,Award Costs,Loughborough University,PIN066234,-1559.93
FCDO,CSC,08/12/2023,Scholar Engagement,Programme Costs,Scholar,PIN066272,600
FCDO,CSC,08/12/2023,Tuition Fee,Award Costs,Kings College London,PIN066187,18000
FCDO,CSC,08/12/2023,Tuition Fee,Award Costs,Kings College London,PIN066188,18000
FCDO,CSC,08/12/2023,Scholar Allowances,Award Costs,The University of Leeds,PIN066202,1500
FCDO,CSC,08/12/2023,Tuition Fee,Award Costs,The University of Leeds,PIN066204,179750
FCDO,CSC,08/12/2023,Scholar Allowances,Award Costs,The University of Leeds,PIN066205,1800
FCDO,CSC,08/12/2023,Scholar Allowances,Award Costs,The University of Leeds,PIN066206,1600
FCDO,CSC,08/12/2023,Tuition Fee,Award Costs,Kings College London,PIN066189,22500
FCDO,CSC,08/12/2023,Tuition Fee,Award Costs,University of Hull,PIN066238,14920
FCDO,CSC,08/12/2023,Scholar Engagement,Programme Costs,Cumberland Lodge Enterprises Limited,PIN066269,15697.3
FCDO,CSC,08/12/2023,Award Support Costs,Award Costs,Brunel University,PIN066198,5000
FCDO,CSC,08/12/2023,Award Support Costs,Award Costs,University of Hull,PIN066157,5000
FCDO,CSC,08/12/2023,Scholar Allowances,Award Costs,University of St  Andrews,PIN066199,1800
FCDO,CSC,08/12/2023,Scholar Allowances,Award Costs,University of St  Andrews,PIN066199,1600
FCDO,CSC,08/12/2023,Scholar Allowances,Award Costs,University of St  Andrews,PIN066201,1225
FCDO,CSC,08/12/2023,Visa Costs,Award Costs,The Cambridge Commonwealth Trust,PIN066243,393.05
FCDO,CSC,08/12/2023,Immigration Health Surcharge,Award Costs,The Cambridge Commonwealth Trust,PIN066243,508.6
FCDO,CSC,08/12/2023,Scholar Travel,Award Costs,The Cambridge Commonwealth Trust,PIN066243,409.06
FCDO,CSC,08/12/2023,Award Support Costs,Award Costs,Cardiff University,PIN066248,4500
FCDO,CSC,08/12/2023,Tuition Fee,Award Costs,Cardiff University,PIN066248,18000
FCDO,CSC,08/12/2023,Tuition Fee,Award Costs,University College London Fees,PIN066136,18000
FCDO,CSC,08/12/2023,Award Support Costs,Award Costs,University of Bradford,PIN066200,5000
FCDO,CSC,08/12/2023,Scholar Allowances,Award Costs,University of Strathclyde,PIN066235,2025
FCDO,CSC,08/12/2023,Scholar Allowances,Award Costs,University of Strathclyde,PIN066235,1800
FCDO,CSC,08/12/2023,Scholar Allowances,Award Costs,University of Strathclyde,PIN066237,2400
FCDO,CSC,08/12/2023,Tuition Fee,Award Costs,University of Strathclyde,PIN066252,22500
FCDO,CSC,08/12/2023,Tuition Fee,Award Costs,University of Strathclyde,PIN066253,22500
FCDO,CSC,08/12/2023,Tuition Fee,Award Costs,University of Strathclyde,PIN066254,22500
FCDO,CSC,08/12/2023,Tuition Fee,Award Costs,University of Strathclyde,PIN066255,22500
FCDO,CSC,08/12/2023,Visa Costs,Award Costs,University of Strathclyde,PIN066256,594
FCDO,CSC,08/12/2023,Tuition Fee,Award Costs,Scholar,PIN066257,14784
FCDO,CSC,08/12/2023,Tuition Fee,Award Costs,University of Strathclyde,PIN066258,22500
FCDO,CSC,08/12/2023,Tuition Fee,Award Costs,University of Strathclyde,PIN066261,17400
FCDO,CSC,08/12/2023,Tuition Fee,Award Costs,Cardiff University,PIN066246,7160
FCDO,CSC,08/12/2023,Engagement,Programme Costs,Scholar,PIN066268,1249.2
FCDO,CSC,08/12/2023,Scholar Allowances,Award Costs,Scholar,PIN066263,2037.5
FCDO,CSC,08/12/2023,Scholar Stipend,Award Costs,Scholar,PIN066263,1883.8
FCDO,CSC,08/12/2023,Scholar Allowances,Award Costs,Scholar,PIN068211,522
FCDO,CSC,08/12/2023,Scholar Stipend,Award Costs,Scholar,PIN068211,1327.5
FCDO,CSC,08/12/2023,Scholar Allowances,Award Costs,Scholar,PIN068211,522
FCDO,CSC,08/12/2023,Scholar Stipend,Award Costs,Scholar,PIN068211,1017.75
FCDO,CSC,08/12/2023,Bank Charges,Programme Costs,MasterCard Prepaid Management Services Ltd,PIN068211,33.9
FCDO,CSC,08/12/2023,Tuition Fee,Award Costs,The University of Edinburgh,PIN066224,2015
FCDO,CSC,14/12/2023,Scholar Allowances,Award Costs,Scholar,PIN068212,522
FCDO,CSC,14/12/2023,Scholar Stipend,Award Costs,Scholar,PIN068212,1062
FCDO,CSC,14/12/2023,Scholar Allowances,Award Costs,Scholar,PIN068212,522
FCDO,CSC,14/12/2023,Scholar Stipend,Award Costs,Scholar,PIN068212,663.75
FCDO,CSC,14/12/2023,Scholar Allowances,Award Costs,Scholar,PIN068212,522
FCDO,CSC,14/12/2023,Scholar Stipend,Award Costs,Scholar,PIN068212,663.75
FCDO,CSC,14/12/2023,Bank Charges,Programme Costs,MasterCard Prepaid Management Services Ltd,PIN068212,39.56
FCDO,CSC,15/12/2023,Fieldwork Airfare,Award Costs,Diversity Travel,PIN068056,1970.97
FCDO,CSC,15/12/2023,Fieldwork Airfare,Award Costs,Diversity Travel,PIN068056,1766.11
FCDO,CSC,15/12/2023,Scholar Travel,Award Costs,Diversity Travel,PIN068056,1403.79
FCDO,CSC,15/12/2023,Scholar Travel,Award Costs,Diversity Travel,PIN068056,1375.66
FCDO,CSC,15/12/2023,Scholar Travel,Award Costs,Diversity Travel,PIN068056,1341.24
FCDO,CSC,15/12/2023,Scholar Travel,Award Costs,Diversity Travel,PIN068056,1286.14
FCDO,CSC,15/12/2023,Scholar Travel,Award Costs,Diversity Travel,PIN068056,1261.86
FCDO,CSC,15/12/2023,Scholar Travel,Award Costs,Diversity Travel,PIN068056,1234.52
FCDO,CSC,15/12/2023,Fieldwork Airfare,Award Costs,Diversity Travel,PIN068056,1218.28
FCDO,CSC,15/12/2023,Scholar Travel,Award Costs,Diversity Travel,PIN068056,1212.64
FCDO,CSC,15/12/2023,Scholar Travel,Award Costs,Diversity Travel,PIN068056,1187.19
FCDO,CSC,15/12/2023,Scholar Travel,Award Costs,Diversity Travel,PIN068056,1169.06
FCDO,CSC,15/12/2023,Scholar Travel,Award Costs,Diversity Travel,PIN068056,1083.27
FCDO,CSC,15/12/2023,Scholar Travel,Award Costs,Diversity Travel,PIN068056,1030.21
FCDO,CSC,15/12/2023,Scholar Travel,Award Costs,Diversity Travel,PIN068056,1006.03
FCDO,CSC,15/12/2023,Scholar Travel,Award Costs,Diversity Travel,PIN068056,985.83
FCDO,CSC,15/12/2023,Scholar Travel,Award Costs,Diversity Travel,PIN068056,983.81
FCDO,CSC,15/12/2023,Scholar Travel,Award Costs,Diversity Travel,PIN068056,946.44
FCDO,CSC,15/12/2023,Scholar Travel,Award Costs,Diversity Travel,PIN068056,946.03
FCDO,CSC,15/12/2023,Scholar Travel,Award Costs,Diversity Travel,PIN068056,935.44
FCDO,CSC,15/12/2023,Scholar Travel,Award Costs,Diversity Travel,PIN068056,901.06
FCDO,CSC,15/12/2023,Scholar Travel,Award Costs,Diversity Travel,PIN068056,897.77
FCDO,CSC,15/12/2023,Scholar Travel,Award Costs,Diversity Travel,PIN068056,625.75
FCDO,CSC,15/12/2023,Scholar Travel,Award Costs,Diversity Travel,PIN068056,194.3
FCDO,CSC,15/12/2023,Scholar Travel,Award Costs,Diversity Travel,PIN068056,82.2
FCDO,CSC,15/12/2023,Scholar Travel,Award Costs,Diversity Travel,PIN068056,79
FCDO,CSC,15/12/2023,Scholar Travel,Award Costs,Diversity Travel,PIN068056,72.7
FCDO,CSC,15/12/2023,Scholar Travel,Award Costs,Diversity Travel,PIN068056,66.5
FCDO,CSC,15/12/2023,Scholar Travel,Award Costs,Diversity Travel,PIN068056,60.2
FCDO,CSC,15/12/2023,Scholar Travel,Award Costs,Diversity Travel,PIN068056,41.9
FCDO,CSC,15/12/2023,Scholar Travel,Award Costs,Diversity Travel,PIN068056,29.3
FCDO,CSC,15/12/2023,Scholar Travel,Award Costs,Diversity Travel,PIN068056,28.3
FCDO,CSC,15/12/2023,Scholar Travel,Award Costs,Diversity Travel,PIN068056,23.7
FCDO,CSC,15/12/2023,Scholar Travel,Award Costs,Diversity Travel,PIN068056,19.9
FCDO,CSC,15/12/2023,Scholar Travel,Award Costs,Diversity Travel,PIN068056,12.5
FCDO,CSC,15/12/2023,Scholar Travel,Award Costs,Diversity Travel,PIN068056,11.6
FCDO,CSC,15/12/2023,Scholar Travel,Award Costs,Diversity Travel,PIN068056,-43.2
FCDO,CSC,15/12/2023,Scholar Travel,Award Costs,Diversity Travel,PIN068056,-70.4
FCDO,CSC,15/12/2023,Scholar Travel,Award Costs,Diversity Travel,PIN068056,-77
FCDO,CSC,15/12/2023,Scholar Stipend,Award Costs,Scholar,PIN066279,1347
FCDO,CSC,15/12/2023,Scholar Stipend,Award Costs,Scholar,PIN066280,4041
FCDO,CSC,15/12/2023,Scholar Stipend,Award Costs,Scholar,PIN066281,3304
FCDO,CSC,15/12/2023,Scholar Stipend,Award Costs,Scholar,PIN066282,4041
FCDO,CSC,15/12/2023,Scholar Stipend,Award Costs,Scholar,PIN066283,4956
FCDO,CSC,15/12/2023,Scholar Stipend,Award Costs,Scholar,PIN066286,4956
FCDO,CSC,15/12/2023,Scholar Stipend,Award Costs,Scholar,PIN066287,2276.35
FCDO,CSC,15/12/2023,Scholar Stipend,Award Costs,Scholar,PIN066288,1283.38
FCDO,CSC,15/12/2023,Scholar Stipend,Award Costs,Scholar,PIN066289,4956
FCDO,CSC,15/12/2023,Scholar Stipend,Award Costs,Scholar,PIN066290,2031.93
FCDO,CSC,15/12/2023,Scholar Stipend,Award Costs,Scholar,PIN066291,4041
FCDO,CSC,15/12/2023,Scholar Stipend,Award Costs,Scholar,PIN066292,4041
FCDO,CSC,15/12/2023,Scholar Stipend,Award Costs,Scholar,PIN066293,4041
FCDO,CSC,15/12/2023,Scholar Stipend,Award Costs,Scholar,PIN066294,4041
FCDO,CSC,15/12/2023,Scholar Stipend,Award Costs,Scholar,PIN066295,4041
FCDO,CSC,15/12/2023,Scholar Stipend,Award Costs,Scholar,PIN066296,4956
FCDO,CSC,15/12/2023,Scholar Stipend,Award Costs,Scholar,PIN066297,4041
FCDO,CSC,15/12/2023,Scholar Stipend,Award Costs,Scholar,PIN066298,1327.64
FCDO,CSC,15/12/2023,Scholar Stipend,Award Costs,Scholar,PIN066299,4041
FCDO,CSC,15/12/2023,Scholar Stipend,Award Costs,Scholar,PIN066300,4041
FCDO,CSC,15/12/2023,Scholar Stipend,Award Costs,Scholar,PIN066301,4041
FCDO,CSC,15/12/2023,Scholar Stipend,Award Costs,Scholar,PIN066303,1652
FCDO,CSC,15/12/2023,Scholar Stipend,Award Costs,Scholar,PIN066305,4041
FCDO,CSC,15/12/2023,Scholar Stipend,Award Costs,Scholar,PIN066306,3933.13
FCDO,CSC,15/12/2023,Scholar Stipend,Award Costs,Scholar,PIN066307,1347
FCDO,CSC,15/12/2023,Scholar Stipend,Award Costs,Scholar,PIN066308,4956
FCDO,CSC,15/12/2023,Scholar Stipend,Award Costs,Scholar,PIN066309,4041
FCDO,CSC,15/12/2023,Scholar Stipend,Award Costs,Scholar,PIN066310,4956
FCDO,CSC,15/12/2023,Scholar Stipend,Award Costs,Scholar,PIN066312,4041
FCDO,CSC,15/12/2023,Scholar Stipend,Award Costs,Scholar,PIN066313,2320.6
FCDO,CSC,15/12/2023,Scholar Stipend,Award Costs,Scholar,PIN066314,4041
FCDO,CSC,15/12/2023,Scholar Stipend,Award Costs,Scholar,PIN066315,4956
FCDO,CSC,15/12/2023,Scholar Stipend,Award Costs,Scholar,PIN066316,4041
FCDO,CSC,15/12/2023,Scholar Stipend,Award Costs,Scholar,PIN066317,4041
FCDO,CSC,15/12/2023,Scholar Stipend,Award Costs,Scholar,PIN066318,4041
FCDO,CSC,15/12/2023,Scholar Stipend,Award Costs,Scholar,PIN066319,4956
FCDO,CSC,15/12/2023,Scholar Stipend,Award Costs,Scholar,PIN066320,4956
FCDO,CSC,15/12/2023,Scholar Stipend,Award Costs,Scholar,PIN066321,4041
FCDO,CSC,15/12/2023,Scholar Stipend,Award Costs,Scholar,PIN066322,4956
FCDO,CSC,15/12/2023,Scholar Stipend,Award Costs,Scholar,PIN066323,4041
FCDO,CSC,15/12/2023,Scholar Stipend,Award Costs,Scholar,PIN066324,3933.13
FCDO,CSC,15/12/2023,Scholar Stipend,Award Costs,Scholar,PIN066325,4041
FCDO,CSC,15/12/2023,Scholar Stipend,Award Costs,Scholar,PIN066326,4041
FCDO,CSC,15/12/2023,Scholar Stipend,Award Costs,Scholar,PIN066327,3304
FCDO,CSC,15/12/2023,Scholar Stipend,Award Costs,Scholar,PIN066328,4041
FCDO,CSC,15/12/2023,Scholar Stipend,Award Costs,Scholar,PIN066330,4956
FCDO,CSC,15/12/2023,Scholar Stipend,Award Costs,Scholar,PIN066331,1347
FCDO,CSC,15/12/2023,Scholar Stipend,Award Costs,Scholar,PIN066332,4041
FCDO,CSC,15/12/2023,Scholar Stipend,Award Costs,Scholar,PIN066333,4041
FCDO,CSC,15/12/2023,Scholar Stipend,Award Costs,Scholar,PIN066334,4041
FCDO,CSC,15/12/2023,Scholar Stipend,Award Costs,Scholar,PIN066335,3304
FCDO,CSC,15/12/2023,Scholar Stipend,Award Costs,Scholar,PIN066336,1391.25
FCDO,CSC,15/12/2023,Scholar Stipend,Award Costs,Scholar,PIN066337,4041
FCDO,CSC,15/12/2023,Scholar Stipend,Award Costs,Scholar,PIN066338,4041
FCDO,CSC,15/12/2023,Scholar Stipend,Award Costs,Scholar,PIN066339,4041
FCDO,CSC,15/12/2023,Scholar Stipend,Award Costs,Scholar,PIN066340,4041
FCDO,CSC,15/12/2023,Scholar Stipend,Award Costs,Scholar,PIN066341,4041
FCDO,CSC,15/12/2023,Scholar Stipend,Award Costs,Scholar,PIN066342,4041
FCDO,CSC,15/12/2023,Scholar Stipend,Award Costs,Scholar,PIN066343,4041
FCDO,CSC,15/12/2023,Scholar Stipend,Award Costs,Scholar,PIN066344,4041
FCDO,CSC,15/12/2023,Scholar Stipend,Award Costs,Scholar,PIN066345,3711.75
FCDO,CSC,15/12/2023,Scholar Stipend,Award Costs,Scholar,PIN066346,673.5
FCDO,CSC,15/12/2023,Scholar Stipend,Award Costs,Scholar,PIN066347,4956
FCDO,CSC,15/12/2023,Scholar Stipend,Award Costs,Scholar,PIN066348,1814.83
FCDO,CSC,15/12/2023,Scholar Stipend,Award Costs,Scholar,PIN066349,1347
FCDO,CSC,15/12/2023,Scholar Stipend,Award Costs,Scholar,PIN066350,4956
FCDO,CSC,15/12/2023,Scholar Stipend,Award Costs,Scholar,PIN066351,1347
FCDO,CSC,15/12/2023,Scholar Stipend,Award Costs,Scholar,PIN066352,1347
FCDO,CSC,15/12/2023,Scholar Stipend,Award Costs,Scholar,PIN066353,4041
FCDO,CSC,15/12/2023,Scholar Stipend,Award Costs,Scholar,PIN066354,4041
FCDO,CSC,15/12/2023,Scholar Stipend,Award Costs,Scholar,PIN066355,4041
FCDO,CSC,15/12/2023,Scholar Stipend,Award Costs,Scholar,PIN066356,1347
FCDO,CSC,15/12/2023,Scholar Stipend,Award Costs,Scholar,PIN066357,4041
FCDO,CSC,15/12/2023,Scholar Stipend,Award Costs,Scholar,PIN066358,4041
FCDO,CSC,15/12/2023,Scholar Stipend,Award Costs,Scholar,PIN066359,4041
FCDO,CSC,15/12/2023,Scholar Stipend,Award Costs,Scholar,PIN066360,4041
FCDO,CSC,15/12/2023,Scholar Stipend,Award Costs,Scholar,PIN066361,4041
FCDO,CSC,15/12/2023,Scholar Stipend,Award Costs,Scholar,PIN066362,4041
FCDO,CSC,15/12/2023,Scholar Stipend,Award Costs,Scholar,PIN066363,4041
FCDO,CSC,15/12/2023,Scholar Stipend,Award Costs,Scholar,PIN066364,4041
FCDO,CSC,15/12/2023,Scholar Stipend,Award Costs,Scholar,PIN066365,4041
FCDO,CSC,15/12/2023,Scholar Stipend,Award Costs,Scholar,PIN066366,4041
FCDO,CSC,15/12/2023,Scholar Stipend,Award Costs,Scholar,PIN066367,4041
FCDO,CSC,15/12/2023,Scholar Stipend,Award Costs,Scholar,PIN066368,4041
FCDO,CSC,15/12/2023,Scholar Stipend,Award Costs,Scholar,PIN066369,4041
FCDO,CSC,15/12/2023,Scholar Stipend,Award Costs,Scholar,PIN066370,4041
FCDO,CSC,15/12/2023,Scholar Stipend,Award Costs,Scholar,PIN066371,4041
FCDO,CSC,15/12/2023,Scholar Stipend,Award Costs,Scholar,PIN066372,4041
FCDO,CSC,15/12/2023,Scholar Stipend,Award Costs,Scholar,PIN066373,4041
FCDO,CSC,15/12/2023,Scholar Stipend,Award Costs,Scholar,PIN066374,4041
FCDO,CSC,15/12/2023,Scholar Stipend,Award Costs,Scholar,PIN066375,1347
FCDO,CSC,15/12/2023,Scholar Stipend,Award Costs,Scholar,PIN066376,4041
FCDO,CSC,15/12/2023,Scholar Stipend,Award Costs,Scholar,PIN066377,4041
FCDO,CSC,15/12/2023,Scholar Stipend,Award Costs,Scholar,PIN066378,4041
FCDO,CSC,15/12/2023,Scholar Stipend,Award Costs,Scholar,PIN066379,814.13
FCDO,CSC,15/12/2023,Scholar Stipend,Award Costs,Scholar,PIN066380,4956
FCDO,CSC,15/12/2023,Scholar Stipend,Award Costs,Scholar,PIN066381,4956
FCDO,CSC,15/12/2023,Scholar Stipend,Award Costs,Scholar,PIN066382,4041
FCDO,CSC,15/12/2023,Scholar Stipend,Award Costs,Scholar,PIN066383,4041
FCDO,CSC,15/12/2023,Scholar Stipend,Award Costs,Scholar,PIN066384,4041
FCDO,CSC,15/12/2023,Scholar Stipend,Award Costs,Scholar,PIN066385,4041
FCDO,CSC,15/12/2023,Scholar Stipend,Award Costs,Scholar,PIN066386,4041
FCDO,CSC,15/12/2023,Scholar Stipend,Award Costs,Scholar,PIN066387,4041
FCDO,CSC,15/12/2023,Scholar Stipend,Award Costs,Scholar,PIN066388,4041
FCDO,CSC,15/12/2023,Scholar Stipend,Award Costs,Scholar,PIN066389,4956
FCDO,CSC,15/12/2023,Scholar Stipend,Award Costs,Scholar,PIN066391,4041
FCDO,CSC,15/12/2023,Scholar Stipend,Award Costs,Scholar,PIN066392,4041
FCDO,CSC,15/12/2023,Scholar Stipend,Award Costs,Scholar,PIN066393,4041
FCDO,CSC,15/12/2023,Scholar Stipend,Award Costs,Scholar,PIN066395,4041
FCDO,CSC,15/12/2023,Scholar Stipend,Award Costs,Scholar,PIN066396,4041
FCDO,CSC,15/12/2023,Scholar Stipend,Award Costs,Scholar,PIN066397,4956
FCDO,CSC,15/12/2023,Scholar Stipend,Award Costs,Scholar,PIN066398,4041
FCDO,CSC,15/12/2023,Scholar Stipend,Award Costs,Scholar,PIN066399,1524.02
FCDO,CSC,15/12/2023,Scholar Stipend,Award Costs,Scholar,PIN066400,4041
FCDO,CSC,15/12/2023,Scholar Stipend,Award Costs,Scholar,PIN066401,4041
FCDO,CSC,15/12/2023,Scholar Stipend,Award Costs,Scholar,PIN066402,4041
FCDO,CSC,15/12/2023,Scholar Stipend,Award Costs,Scholar,PIN066403,4041
FCDO,CSC,15/12/2023,Scholar Stipend,Award Costs,Scholar,PIN066404,4956
FCDO,CSC,15/12/2023,Scholar Stipend,Award Costs,Scholar,PIN066406,4041
FCDO,CSC,15/12/2023,Scholar Stipend,Award Costs,Scholar,PIN066408,4041
FCDO,CSC,15/12/2023,Scholar Stipend,Award Costs,Scholar,PIN066409,4956
FCDO,CSC,15/12/2023,Scholar Stipend,Award Costs,Scholar,PIN066410,4956
FCDO,CSC,15/12/2023,Scholar Stipend,Award Costs,Scholar,PIN066411,4041
FCDO,CSC,15/12/2023,Scholar Stipend,Award Costs,Scholar,PIN066412,4956
FCDO,CSC,15/12/2023,Scholar Stipend,Award Costs,Scholar,PIN066413,4041
FCDO,CSC,15/12/2023,Scholar Stipend,Award Costs,Scholar,PIN066414,4041
FCDO,CSC,15/12/2023,Scholar Stipend,Award Costs,Scholar,PIN066415,4041
FCDO,CSC,15/12/2023,Scholar Stipend,Award Costs,Scholar,PIN066416,4041
FCDO,CSC,15/12/2023,Scholar Stipend,Award Costs,Scholar,PIN066417,4956
FCDO,CSC,15/12/2023,Scholar Stipend,Award Costs,Scholar,PIN066418,1347
FCDO,CSC,15/12/2023,Scholar Stipend,Award Costs,Scholar,PIN066419,4041
FCDO,CSC,15/12/2023,Scholar Stipend,Award Costs,Scholar,PIN066421,1347
FCDO,CSC,15/12/2023,Scholar Stipend,Award Costs,Scholar,PIN066422,4041
FCDO,CSC,15/12/2023,Scholar Stipend,Award Costs,Scholar,PIN066423,4041
FCDO,CSC,15/12/2023,Scholar Stipend,Award Costs,Scholar,PIN066424,3708
FCDO,CSC,15/12/2023,Scholar Stipend,Award Costs,Scholar,PIN066425,708.07
FCDO,CSC,15/12/2023,Scholar Stipend,Award Costs,Scholar,PIN066426,4041
FCDO,CSC,15/12/2023,Scholar Stipend,Award Costs,Scholar,PIN066427,4041
FCDO,CSC,15/12/2023,Scholar Stipend,Award Costs,Scholar,PIN066428,4041
FCDO,CSC,15/12/2023,Scholar Stipend,Award Costs,Scholar,PIN066429,4890.34
FCDO,CSC,15/12/2023,Scholar Stipend,Award Costs,Scholar,PIN066430,4041
FCDO,CSC,15/12/2023,Scholar Stipend,Award Costs,Scholar,PIN066431,4041
FCDO,CSC,15/12/2023,Scholar Stipend,Award Costs,Scholar,PIN066432,4041
FCDO,CSC,15/12/2023,Scholar Stipend,Award Costs,Scholar,PIN066433,4956
FCDO,CSC,15/12/2023,Scholar Stipend,Award Costs,Scholar,PIN066434,4041
FCDO,CSC,15/12/2023,Scholar Stipend,Award Costs,Scholar,PIN066435,4041
FCDO,CSC,15/12/2023,Scholar Stipend,Award Costs,Scholar,PIN066436,4041
FCDO,CSC,15/12/2023,Scholar Stipend,Award Costs,Scholar,PIN066437,4041
FCDO,CSC,15/12/2023,Scholar Stipend,Award Costs,Scholar,PIN066438,1347
FCDO,CSC,15/12/2023,Scholar Stipend,Award Costs,Scholar,PIN066440,4041
FCDO,CSC,15/12/2023,Scholar Stipend,Award Costs,Scholar,PIN066441,4041
FCDO,CSC,15/12/2023,Scholar Stipend,Award Costs,Scholar,PIN066442,4041
FCDO,CSC,15/12/2023,Scholar Stipend,Award Costs,Scholar,PIN066443,4041
FCDO,CSC,15/12/2023,Scholar Stipend,Award Costs,Scholar,PIN066444,4041
FCDO,CSC,15/12/2023,Scholar Stipend,Award Costs,Scholar,PIN066445,663.82
FCDO,CSC,15/12/2023,Scholar Stipend,Award Costs,Scholar,PIN066446,4041
FCDO,CSC,15/12/2023,Scholar Stipend,Award Costs,Scholar,PIN066447,1347
FCDO,CSC,15/12/2023,Scholar Stipend,Award Costs,Scholar,PIN066448,4041
FCDO,CSC,15/12/2023,Scholar Stipend,Award Costs,Scholar,PIN066449,4041
FCDO,CSC,15/12/2023,Scholar Stipend,Award Costs,Scholar,PIN066450,4041
FCDO,CSC,15/12/2023,Scholar Stipend,Award Costs,Scholar,PIN066451,2187.84
FCDO,CSC,15/12/2023,Scholar Stipend,Award Costs,Scholar,PIN066452,4041
FCDO,CSC,15/12/2023,Scholar Stipend,Award Costs,Scholar,PIN066453,4041
FCDO,CSC,15/12/2023,Scholar Stipend,Award Costs,Scholar,PIN066454,1347
FCDO,CSC,15/12/2023,Scholar Stipend,Award Costs,Scholar,PIN066455,4041
FCDO,CSC,15/12/2023,Scholar Stipend,Award Costs,Scholar,PIN066456,4041
FCDO,CSC,15/12/2023,Scholar Stipend,Award Costs,Scholar,PIN066457,4548
FCDO,CSC,15/12/2023,Scholar Stipend,Award Costs,Scholar,PIN066458,1391.25
FCDO,CSC,15/12/2023,Scholar Stipend,Award Costs,Scholar,PIN066459,4041
FCDO,CSC,15/12/2023,Scholar Stipend,Award Costs,Scholar,PIN066460,4552.92
FCDO,CSC,15/12/2023,Scholar Stipend,Award Costs,Scholar,PIN066461,4956
FCDO,CSC,15/12/2023,Scholar Stipend,Award Costs,Scholar,PIN066462,4041
FCDO,CSC,15/12/2023,Scholar Stipend,Award Costs,Scholar,PIN066464,4041
FCDO,CSC,15/12/2023,Scholar Stipend,Award Costs,Scholar,PIN066465,4041
FCDO,CSC,15/12/2023,Scholar Stipend,Award Costs,Scholar,PIN066467,4041
FCDO,CSC,15/12/2023,Scholar Stipend,Award Costs,Scholar,PIN066468,4041
FCDO,CSC,15/12/2023,Scholar Stipend,Award Costs,Scholar,PIN066469,4041
FCDO,CSC,15/12/2023,Scholar Stipend,Award Costs,Scholar,PIN066470,4041
FCDO,CSC,15/12/2023,Scholar Stipend,Award Costs,Scholar,PIN066471,1391.25
FCDO,CSC,15/12/2023,Scholar Stipend,Award Costs,Scholar,PIN066472,4041
FCDO,CSC,15/12/2023,Scholar Stipend,Award Costs,Scholar,PIN066473,4041
FCDO,CSC,15/12/2023,Scholar Stipend,Award Costs,Scholar,PIN066474,4041
FCDO,CSC,15/12/2023,Scholar Stipend,Award Costs,Scholar,PIN066475,4041
FCDO,CSC,15/12/2023,Scholar Stipend,Award Costs,Scholar,PIN066476,4041
FCDO,CSC,15/12/2023,Scholar Stipend,Award Costs,Scholar,PIN066477,4041
FCDO,CSC,15/12/2023,Scholar Stipend,Award Costs,Scholar,PIN066478,4041
FCDO,CSC,15/12/2023,Scholar Stipend,Award Costs,Scholar,PIN066479,4041
FCDO,CSC,15/12/2023,Scholar Stipend,Award Costs,Scholar,PIN066480,4041
FCDO,CSC,15/12/2023,Scholar Stipend,Award Costs,Scholar,PIN066481,4956
FCDO,CSC,15/12/2023,Scholar Stipend,Award Costs,Scholar,PIN066482,4041
FCDO,CSC,15/12/2023,Scholar Stipend,Award Costs,Scholar,PIN066483,1347
FCDO,CSC,15/12/2023,Scholar Stipend,Award Costs,Scholar,PIN066484,4956
FCDO,CSC,15/12/2023,Scholar Stipend,Award Costs,Scholar,PIN066485,4041
FCDO,CSC,15/12/2023,Scholar Stipend,Award Costs,Scholar,PIN066486,4956
FCDO,CSC,15/12/2023,Scholar Stipend,Award Costs,Scholar,PIN066487,3136.55
FCDO,CSC,15/12/2023,Scholar Stipend,Award Costs,Scholar,PIN066489,4956
FCDO,CSC,15/12/2023,Scholar Stipend,Award Costs,Scholar,PIN066490,4956
FCDO,CSC,15/12/2023,Scholar Stipend,Award Costs,Scholar,PIN066491,4041
FCDO,CSC,15/12/2023,Scholar Stipend,Award Costs,Scholar,PIN066492,4041
FCDO,CSC,15/12/2023,Scholar Stipend,Award Costs,Scholar,PIN066493,4041
FCDO,CSC,15/12/2023,Scholar Stipend,Award Costs,Scholar,PIN066494,1347
FCDO,CSC,15/12/2023,Scholar Stipend,Award Costs,Scholar,PIN066495,4956
FCDO,CSC,15/12/2023,Scholar Stipend,Award Costs,Scholar,PIN066496,1347
FCDO,CSC,15/12/2023,Scholar Stipend,Award Costs,Scholar,PIN066497,4041
FCDO,CSC,15/12/2023,Scholar Stipend,Award Costs,Scholar,PIN066499,4041
FCDO,CSC,15/12/2023,Scholar Stipend,Award Costs,Scholar,PIN066500,4041
FCDO,CSC,15/12/2023,Scholar Stipend,Award Costs,Scholar,PIN066501,4041
FCDO,CSC,15/12/2023,Scholar Stipend,Award Costs,Scholar,PIN066502,4041
FCDO,CSC,15/12/2023,Scholar Stipend,Award Costs,Scholar,PIN066503,4041
FCDO,CSC,15/12/2023,Scholar Stipend,Award Costs,Scholar,PIN066504,4041
FCDO,CSC,15/12/2023,Scholar Stipend,Award Costs,Scholar,PIN066506,4041
FCDO,CSC,15/12/2023,Scholar Stipend,Award Costs,Scholar,PIN066507,4041
FCDO,CSC,15/12/2023,Scholar Stipend,Award Costs,Scholar,PIN066508,4041
FCDO,CSC,15/12/2023,Scholar Stipend,Award Costs,Scholar,PIN066509,4956
FCDO,CSC,15/12/2023,Scholar Stipend,Award Costs,Scholar,PIN066510,4041
FCDO,CSC,15/12/2023,Scholar Stipend,Award Costs,Scholar,PIN066511,4956
FCDO,CSC,15/12/2023,Scholar Stipend,Award Costs,Scholar,PIN066513,4041
FCDO,CSC,15/12/2023,Scholar Stipend,Award Costs,Scholar,PIN066514,1347
FCDO,CSC,15/12/2023,Scholar Stipend,Award Costs,Scholar,PIN066515,4956
FCDO,CSC,15/12/2023,Scholar Stipend,Award Costs,Scholar,PIN066516,4041
FCDO,CSC,15/12/2023,Scholar Stipend,Award Costs,Scholar,PIN066517,4041
FCDO,CSC,15/12/2023,Scholar Stipend,Award Costs,Scholar,PIN066518,1347
FCDO,CSC,15/12/2023,Scholar Stipend,Award Costs,Scholar,PIN066519,4041
FCDO,CSC,15/12/2023,Scholar Stipend,Award Costs,Scholar,PIN066520,1347
FCDO,CSC,15/12/2023,Scholar Stipend,Award Costs,Scholar,PIN066521,4041
FCDO,CSC,15/12/2023,Scholar Stipend,Award Costs,Scholar,PIN066522,4041
FCDO,CSC,15/12/2023,Scholar Stipend,Award Costs,Scholar,PIN066523,4956
FCDO,CSC,15/12/2023,Scholar Stipend,Award Costs,Scholar,PIN066524,1347
FCDO,CSC,15/12/2023,Scholar Stipend,Award Costs,Scholar,PIN066525,4041
FCDO,CSC,15/12/2023,Scholar Stipend,Award Costs,Scholar,PIN066526,4041
FCDO,CSC,15/12/2023,Scholar Stipend,Award Costs,Scholar,PIN066527,4041
FCDO,CSC,15/12/2023,Scholar Stipend,Award Costs,Scholar,PIN066528,4041
FCDO,CSC,15/12/2023,Scholar Stipend,Award Costs,Scholar,PIN066530,4041
FCDO,CSC,15/12/2023,Scholar Stipend,Award Costs,Scholar,PIN066531,4041
FCDO,CSC,15/12/2023,Scholar Stipend,Award Costs,Scholar,PIN066532,4041
FCDO,CSC,15/12/2023,Scholar Stipend,Award Costs,Scholar,PIN066533,4041
FCDO,CSC,15/12/2023,Scholar Stipend,Award Costs,Scholar,PIN066534,4041
FCDO,CSC,15/12/2023,Scholar Stipend,Award Costs,Scholar,PIN066535,4956
FCDO,CSC,15/12/2023,Scholar Stipend,Award Costs,Scholar,PIN066536,4041
FCDO,CSC,15/12/2023,Scholar Stipend,Award Costs,Scholar,PIN066537,597.03
FCDO,CSC,15/12/2023,Scholar Stipend,Award Costs,Scholar,PIN066538,4956
FCDO,CSC,15/12/2023,Scholar Stipend,Award Costs,Scholar,PIN066539,4041
FCDO,CSC,15/12/2023,Scholar Stipend,Award Costs,Scholar,PIN066542,4041
FCDO,CSC,15/12/2023,Scholar Stipend,Award Costs,Scholar,PIN066543,4041
FCDO,CSC,15/12/2023,Scholar Stipend,Award Costs,Scholar,PIN066545,4041
FCDO,CSC,15/12/2023,Scholar Stipend,Award Costs,Scholar,PIN066546,1789.55
FCDO,CSC,15/12/2023,Scholar Stipend,Award Costs,Scholar,PIN066547,4041
FCDO,CSC,15/12/2023,Scholar Stipend,Award Costs,Scholar,PIN066548,4041
FCDO,CSC,15/12/2023,Scholar Stipend,Award Costs,Scholar,PIN066549,4041
FCDO,CSC,15/12/2023,Scholar Stipend,Award Costs,Scholar,PIN066550,4041
FCDO,CSC,15/12/2023,Scholar Stipend,Award Costs,Scholar,PIN066551,4041
FCDO,CSC,15/12/2023,Scholar Stipend,Award Costs,Scholar,PIN066552,2595.81
FCDO,CSC,15/12/2023,Scholar Stipend,Award Costs,Scholar,PIN066553,4041
FCDO,CSC,15/12/2023,Scholar Stipend,Award Costs,Scholar,PIN066554,4956
FCDO,CSC,15/12/2023,Scholar Stipend,Award Costs,Scholar,PIN066555,4041
FCDO,CSC,15/12/2023,Scholar Stipend,Award Costs,Scholar,PIN066556,4041
FCDO,CSC,15/12/2023,Scholar Stipend,Award Costs,Scholar,PIN066557,4041
FCDO,CSC,15/12/2023,Scholar Stipend,Award Costs,Scholar,PIN066558,4041
FCDO,CSC,15/12/2023,Scholar Stipend,Award Costs,Scholar,PIN066560,4041
FCDO,CSC,15/12/2023,Scholar Stipend,Award Costs,Scholar,PIN066561,4041
FCDO,CSC,15/12/2023,Scholar Stipend,Award Costs,Scholar,PIN066562,1652
FCDO,CSC,15/12/2023,Scholar Stipend,Award Costs,Scholar,PIN066563,4041
FCDO,CSC,15/12/2023,Scholar Stipend,Award Costs,Scholar,PIN066565,4041
FCDO,CSC,15/12/2023,Scholar Stipend,Award Costs,Scholar,PIN066566,4956
FCDO,CSC,15/12/2023,Scholar Stipend,Award Costs,Scholar,PIN066567,4041
FCDO,CSC,15/12/2023,Scholar Stipend,Award Costs,Scholar,PIN066568,4041
FCDO,CSC,15/12/2023,Scholar Stipend,Award Costs,Scholar,PIN066569,4956
FCDO,CSC,15/12/2023,Scholar Stipend,Award Costs,Scholar,PIN066570,4956
FCDO,CSC,15/12/2023,Scholar Stipend,Award Costs,Scholar,PIN066571,4041
FCDO,CSC,15/12/2023,Scholar Stipend,Award Costs,Scholar,PIN066572,4041
FCDO,CSC,15/12/2023,Scholar Stipend,Award Costs,Scholar,PIN066573,4956
FCDO,CSC,15/12/2023,Scholar Stipend,Award Costs,Scholar,PIN066574,1435.51
FCDO,CSC,15/12/2023,Scholar Stipend,Award Costs,Scholar,PIN066575,4041
FCDO,CSC,15/12/2023,Scholar Stipend,Award Costs,Scholar,PIN066576,4041
FCDO,CSC,15/12/2023,Scholar Stipend,Award Costs,Scholar,PIN066577,3708
FCDO,CSC,15/12/2023,Scholar Stipend,Award Costs,Scholar,PIN066578,1678.91
FCDO,CSC,15/12/2023,Scholar Stipend,Award Costs,Scholar,PIN066579,3003.78
FCDO,CSC,15/12/2023,Scholar Stipend,Award Costs,Scholar,PIN066580,1347
FCDO,CSC,15/12/2023,Scholar Stipend,Award Costs,Scholar,PIN066581,4041
FCDO,CSC,15/12/2023,Scholar Stipend,Award Costs,Scholar,PIN066582,4041
FCDO,CSC,15/12/2023,Scholar Stipend,Award Costs,Scholar,PIN066583,4041
FCDO,CSC,15/12/2023,Scholar Stipend,Award Costs,Scholar,PIN066584,4041
FCDO,CSC,15/12/2023,Scholar Stipend,Award Costs,Scholar,PIN066585,3402.07
FCDO,CSC,15/12/2023,Scholar Stipend,Award Costs,Scholar,PIN066586,4041
FCDO,CSC,15/12/2023,Scholar Stipend,Award Costs,Scholar,PIN066588,4956
FCDO,CSC,15/12/2023,Scholar Stipend,Award Costs,Scholar,PIN066589,4041
FCDO,CSC,15/12/2023,Scholar Stipend,Award Costs,Scholar,PIN066592,4956
FCDO,CSC,15/12/2023,Scholar Stipend,Award Costs,Scholar,PIN066593,4041
FCDO,CSC,15/12/2023,Scholar Stipend,Award Costs,Scholar,PIN066594,2194.75
FCDO,CSC,15/12/2023,Scholar Stipend,Award Costs,Scholar,PIN066595,1347
FCDO,CSC,15/12/2023,Scholar Stipend,Award Costs,Scholar,PIN066597,4041
FCDO,CSC,15/12/2023,Scholar Stipend,Award Costs,Scholar,PIN066598,4041
FCDO,CSC,15/12/2023,Scholar Stipend,Award Costs,Scholar,PIN066599,4041
FCDO,CSC,15/12/2023,Scholar Stipend,Award Costs,Scholar,PIN066600,4956
FCDO,CSC,15/12/2023,Scholar Stipend,Award Costs,Scholar,PIN066601,1347
FCDO,CSC,15/12/2023,Scholar Stipend,Award Costs,Scholar,PIN066602,4041
FCDO,CSC,15/12/2023,Scholar Stipend,Award Costs,Scholar,PIN066603,4041
FCDO,CSC,15/12/2023,Scholar Stipend,Award Costs,Scholar,PIN066604,4956
FCDO,CSC,15/12/2023,Scholar Stipend,Award Costs,Scholar,PIN066605,4041
FCDO,CSC,15/12/2023,Scholar Stipend,Award Costs,Scholar,PIN066606,4041
FCDO,CSC,15/12/2023,Scholar Stipend,Award Costs,Scholar,PIN066607,4041
FCDO,CSC,15/12/2023,Scholar Stipend,Award Costs,Scholar,PIN066608,4041
FCDO,CSC,15/12/2023,Scholar Stipend,Award Costs,Scholar,PIN066609,4041
FCDO,CSC,15/12/2023,Scholar Stipend,Award Costs,Scholar,PIN066610,4041
FCDO,CSC,15/12/2023,Scholar Stipend,Award Costs,Scholar,PIN066611,4956
FCDO,CSC,15/12/2023,Scholar Stipend,Award Costs,Scholar,PIN066613,4041
FCDO,CSC,15/12/2023,Scholar Stipend,Award Costs,Scholar,PIN066614,4041
FCDO,CSC,15/12/2023,Scholar Stipend,Award Costs,Scholar,PIN066615,4041
FCDO,CSC,15/12/2023,Scholar Stipend,Award Costs,Scholar,PIN066616,1347
FCDO,CSC,15/12/2023,Scholar Stipend,Award Costs,Scholar,PIN066617,4956
FCDO,CSC,15/12/2023,Scholar Stipend,Award Costs,Scholar,PIN066619,4041
FCDO,CSC,15/12/2023,Scholar Stipend,Award Costs,Scholar,PIN066620,1347
FCDO,CSC,15/12/2023,Scholar Stipend,Award Costs,Scholar,PIN066621,4956
FCDO,CSC,15/12/2023,Scholar Stipend,Award Costs,Scholar,PIN066622,4956
FCDO,CSC,15/12/2023,Scholar Stipend,Award Costs,Scholar,PIN066623,4041
FCDO,CSC,15/12/2023,Scholar Stipend,Award Costs,Scholar,PIN066624,4041
FCDO,CSC,15/12/2023,Scholar Stipend,Award Costs,Scholar,PIN066625,4956
FCDO,CSC,15/12/2023,Scholar Stipend,Award Costs,Scholar,PIN066626,4041
FCDO,CSC,15/12/2023,Scholar Stipend,Award Costs,Scholar,PIN066627,1347
FCDO,CSC,15/12/2023,Scholar Stipend,Award Costs,Scholar,PIN066628,4041
FCDO,CSC,15/12/2023,Scholar Stipend,Award Costs,Scholar,PIN066631,4956
FCDO,CSC,15/12/2023,Scholar Stipend,Award Costs,Scholar,PIN066633,4041
FCDO,CSC,15/12/2023,Scholar Stipend,Award Costs,Scholar,PIN066634,4041
FCDO,CSC,15/12/2023,Scholar Stipend,Award Costs,Scholar,PIN066635,4041
FCDO,CSC,15/12/2023,Scholar Stipend,Award Costs,Scholar,PIN066636,4041
FCDO,CSC,15/12/2023,Scholar Stipend,Award Costs,Scholar,PIN066637,4956
FCDO,CSC,15/12/2023,Scholar Stipend,Award Costs,Scholar,PIN066638,4041
FCDO,CSC,15/12/2023,Scholar Stipend,Award Costs,Scholar,PIN066639,4041
FCDO,CSC,15/12/2023,Scholar Stipend,Award Costs,Scholar,PIN066640,4041
FCDO,CSC,15/12/2023,Scholar Stipend,Award Costs,Scholar,PIN066641,4041
FCDO,CSC,15/12/2023,Scholar Stipend,Award Costs,Scholar,PIN066642,4041
FCDO,CSC,15/12/2023,Scholar Stipend,Award Costs,Scholar,PIN066643,4956
FCDO,CSC,15/12/2023,Scholar Stipend,Award Costs,Scholar,PIN066644,4041
FCDO,CSC,15/12/2023,Scholar Stipend,Award Costs,Scholar,PIN066646,4041
FCDO,CSC,15/12/2023,Scholar Stipend,Award Costs,Scholar,PIN066647,4041
FCDO,CSC,15/12/2023,Scholar Stipend,Award Costs,Scholar,PIN066649,4041
FCDO,CSC,15/12/2023,Scholar Stipend,Award Costs,Scholar,PIN066650,1347
FCDO,CSC,15/12/2023,Scholar Stipend,Award Costs,Scholar,PIN066651,4041
FCDO,CSC,15/12/2023,Scholar Stipend,Award Costs,Scholar,PIN066652,2099.33
FCDO,CSC,15/12/2023,Scholar Stipend,Award Costs,Scholar,PIN066653,4041
FCDO,CSC,15/12/2023,Scholar Stipend,Award Costs,Scholar,PIN066654,3304
FCDO,CSC,15/12/2023,Scholar Stipend,Award Costs,Scholar,PIN066655,4956
FCDO,CSC,15/12/2023,Scholar Stipend,Award Costs,Scholar,PIN066656,4956
FCDO,CSC,15/12/2023,Scholar Stipend,Award Costs,Scholar,PIN066658,4041
FCDO,CSC,15/12/2023,Scholar Stipend,Award Costs,Scholar,PIN066659,1347
FCDO,CSC,15/12/2023,Scholar Stipend,Award Costs,Scholar,PIN066660,4041
FCDO,CSC,15/12/2023,Scholar Stipend,Award Costs,Scholar,PIN066662,1347
FCDO,CSC,15/12/2023,Scholar Stipend,Award Costs,Scholar,PIN066663,4041
FCDO,CSC,15/12/2023,Scholar Stipend,Award Costs,Scholar,PIN066664,4041
FCDO,CSC,15/12/2023,Scholar Stipend,Award Costs,Scholar,PIN066665,4041
FCDO,CSC,15/12/2023,Scholar Stipend,Award Costs,Scholar,PIN066666,4041
FCDO,CSC,15/12/2023,Scholar Stipend,Award Costs,Scholar,PIN066667,4956
FCDO,CSC,15/12/2023,Scholar Stipend,Award Costs,Scholar,PIN066669,542.75
FCDO,CSC,15/12/2023,Scholar Stipend,Award Costs,Scholar,PIN066670,4041
FCDO,CSC,15/12/2023,Scholar Stipend,Award Costs,Scholar,PIN066671,4041
FCDO,CSC,15/12/2023,Scholar Stipend,Award Costs,Scholar,PIN066673,1347
FCDO,CSC,15/12/2023,Scholar Stipend,Award Costs,Scholar,PIN066674,1347
FCDO,CSC,15/12/2023,Scholar Stipend,Award Costs,Scholar,PIN066675,4041
FCDO,CSC,15/12/2023,Scholar Stipend,Award Costs,Scholar,PIN066676,4956
FCDO,CSC,15/12/2023,Scholar Stipend,Award Costs,Scholar,PIN066677,4041
FCDO,CSC,15/12/2023,Scholar Stipend,Award Costs,Scholar,PIN066678,542.75
FCDO,CSC,15/12/2023,Scholar Stipend,Award Costs,Scholar,PIN066679,4041
FCDO,CSC,15/12/2023,Scholar Stipend,Award Costs,Scholar,PIN066680,4956
FCDO,CSC,15/12/2023,Scholar Stipend,Award Costs,Scholar,PIN066682,4041
FCDO,CSC,15/12/2023,Scholar Stipend,Award Costs,Scholar,PIN066683,2010.82
FCDO,CSC,15/12/2023,Scholar Stipend,Award Costs,Scholar,PIN066684,1347
FCDO,CSC,15/12/2023,Scholar Stipend,Award Costs,Scholar,PIN066685,4956
FCDO,CSC,15/12/2023,Scholar Stipend,Award Costs,Scholar,PIN066686,4041
FCDO,CSC,15/12/2023,Scholar Stipend,Award Costs,Scholar,PIN066687,4956
FCDO,CSC,15/12/2023,Scholar Stipend,Award Costs,Scholar,PIN066689,4041
FCDO,CSC,15/12/2023,Scholar Stipend,Award Costs,Scholar,PIN066690,3180.8
FCDO,CSC,15/12/2023,Scholar Stipend,Award Costs,Scholar,PIN066691,4041
FCDO,CSC,15/12/2023,Scholar Stipend,Award Costs,Scholar,PIN066692,4041
FCDO,CSC,15/12/2023,Scholar Stipend,Award Costs,Scholar,PIN066693,4041
FCDO,CSC,15/12/2023,Scholar Stipend,Award Costs,Scholar,PIN066694,4041
FCDO,CSC,15/12/2023,Scholar Stipend,Award Costs,Scholar,PIN066695,1479.76
FCDO,CSC,15/12/2023,Scholar Stipend,Award Costs,Scholar,PIN066696,2020.5
FCDO,CSC,15/12/2023,Scholar Stipend,Award Costs,Scholar,PIN066697,4956
FCDO,CSC,15/12/2023,Scholar Stipend,Award Costs,Scholar,PIN066698,4041
FCDO,CSC,15/12/2023,Scholar Stipend,Award Costs,Scholar,PIN066699,2826.76
FCDO,CSC,15/12/2023,Scholar Stipend,Award Costs,Scholar,PIN066700,4041
FCDO,CSC,15/12/2023,Scholar Stipend,Award Costs,Scholar,PIN066701,4041
FCDO,CSC,15/12/2023,Scholar Stipend,Award Costs,Scholar,PIN066702,4041
FCDO,CSC,15/12/2023,Scholar Stipend,Award Costs,Scholar,PIN066703,4956
FCDO,CSC,15/12/2023,Scholar Stipend,Award Costs,Scholar,PIN066704,4041
FCDO,CSC,15/12/2023,Scholar Stipend,Award Costs,Scholar,PIN066705,1546.15
FCDO,CSC,15/12/2023,Scholar Stipend,Award Costs,Scholar,PIN066706,4041
FCDO,CSC,15/12/2023,Scholar Stipend,Award Costs,Scholar,PIN066707,4041
FCDO,CSC,15/12/2023,Scholar Stipend,Award Costs,Scholar,PIN066709,4041
FCDO,CSC,15/12/2023,Scholar Stipend,Award Costs,Scholar,PIN066710,4041
FCDO,CSC,15/12/2023,Scholar Stipend,Award Costs,Scholar,PIN066711,4041
FCDO,CSC,15/12/2023,Scholar Stipend,Award Costs,Scholar,PIN066712,4041
FCDO,CSC,15/12/2023,Scholar Stipend,Award Costs,Scholar,PIN066713,4041
FCDO,CSC,15/12/2023,Scholar Stipend,Award Costs,Scholar,PIN066714,4041
FCDO,CSC,15/12/2023,Scholar Stipend,Award Costs,Scholar,PIN066715,4041
FCDO,CSC,15/12/2023,Scholar Stipend,Award Costs,Scholar,PIN066716,4041
FCDO,CSC,15/12/2023,Scholar Stipend,Award Costs,Scholar,PIN066717,4041
FCDO,CSC,15/12/2023,Scholar Stipend,Award Costs,Scholar,PIN066718,4041
FCDO,CSC,15/12/2023,Scholar Stipend,Award Costs,Scholar,PIN066719,2541.87
FCDO,CSC,15/12/2023,Scholar Stipend,Award Costs,Scholar,PIN066720,2099.33
FCDO,CSC,15/12/2023,Scholar Stipend,Award Costs,Scholar,PIN066721,4041
FCDO,CSC,15/12/2023,Scholar Stipend,Award Costs,Scholar,PIN066722,4041
FCDO,CSC,15/12/2023,Scholar Stipend,Award Costs,Scholar,PIN066723,1568.27
FCDO,CSC,15/12/2023,Scholar Stipend,Award Costs,Scholar,PIN066724,4041
FCDO,CSC,15/12/2023,Scholar Stipend,Award Costs,Scholar,PIN066725,4041
FCDO,CSC,15/12/2023,Scholar Stipend,Award Costs,Scholar,PIN066726,4956
FCDO,CSC,15/12/2023,Scholar Stipend,Award Costs,Scholar,PIN066727,4041
FCDO,CSC,15/12/2023,Scholar Stipend,Award Costs,Scholar,PIN066728,4041
FCDO,CSC,15/12/2023,Scholar Stipend,Award Costs,Scholar,PIN066729,4041
FCDO,CSC,15/12/2023,Scholar Stipend,Award Costs,Scholar,PIN066730,4041
FCDO,CSC,15/12/2023,Scholar Stipend,Award Costs,Scholar,PIN066731,4041
FCDO,CSC,15/12/2023,Scholar Stipend,Award Costs,Scholar,PIN066732,4041
FCDO,CSC,15/12/2023,Scholar Stipend,Award Costs,Scholar,PIN066733,4041
FCDO,CSC,15/12/2023,Scholar Stipend,Award Costs,Scholar,PIN066734,4041
FCDO,CSC,15/12/2023,Scholar Allowances,Award Costs,Scholar,PIN066735,1764.65
FCDO,CSC,15/12/2023,Scholar Allowances,Award Costs,Scholar,PIN066738,1652
FCDO,CSC,15/12/2023,Scholar Allowances,Award Costs,Scholar,PIN066741,1853.16
FCDO,CSC,15/12/2023,Scholar Allowances,Award Costs,Scholar,PIN066743,1302.75
FCDO,CSC,15/12/2023,Scholar Allowances,Award Costs,Scholar,PIN066744,3908.24
FCDO,CSC,15/12/2023,Scholar Allowances,Award Costs,Scholar,PIN066745,3908.24
FCDO,CSC,15/12/2023,Scholar Allowances,Award Costs,Scholar,PIN066746,2605
FCDO,CSC,15/12/2023,Scholar Allowances,Award Costs,Scholar,PIN066747,1037.22
FCDO,CSC,15/12/2023,Scholar Allowances,Award Costs,Scholar,PIN066748,638.93
FCDO,CSC,15/12/2023,Scholar Allowances,Award Costs,Scholar,PIN066749,3908.24
FCDO,CSC,15/12/2023,Scholar Allowances,Award Costs,Scholar,PIN066750,3863.98
FCDO,CSC,15/12/2023,Scholar Allowances,Award Costs,Scholar,PIN066751,4413.25
FCDO,CSC,15/12/2023,Scholar Allowances,Award Costs,Scholar,PIN066752,3908.24
FCDO,CSC,15/12/2023,Scholar Allowances,Award Costs,Scholar,PIN066753,860.2
FCDO,CSC,15/12/2023,Scholar Allowances,Award Costs,Scholar,PIN066754,1214.24
FCDO,CSC,15/12/2023,Advances Repayments,Award Costs,Scholar,PIN066755,-900
FCDO,CSC,15/12/2023,Advances Repayments,Award Costs,Scholar,PIN066756,-1017.75
FCDO,CSC,15/12/2023,Advances Repayments,Award Costs,Scholar,PIN066757,-650
FCDO,CSC,15/12/2023,Scholar Allowances,Award Costs,Scholar,PIN066760,1299
FCDO,CSC,15/12/2023,Scholar Allowances,Award Costs,Scholar,PIN066763,1731
FCDO,CSC,15/12/2023,Scholar Allowances,Award Costs,Scholar,PIN066764,870
FCDO,CSC,15/12/2023,Scholar Allowances,Award Costs,Scholar,PIN066765,1299
FCDO,CSC,15/12/2023,Scholar Allowances,Award Costs,Scholar,PIN066766,870
FCDO,CSC,15/12/2023,Scholar Allowances,Award Costs,Scholar,PIN066767,1728
FCDO,CSC,15/12/2023,Scholar Allowances,Award Costs,Scholar,PIN066769,1299
FCDO,CSC,15/12/2023,Scholar Allowances,Award Costs,Scholar,PIN066770,870
FCDO,CSC,15/12/2023,Scholar Allowances,Award Costs,Scholar,PIN066771,870
FCDO,CSC,15/12/2023,Scholar Allowances,Award Costs,Scholar,PIN066772,1728
FCDO,CSC,15/12/2023,Scholar Allowances,Award Costs,Scholar,PIN066773,870
FCDO,CSC,15/12/2023,Scholar Allowances,Award Costs,Scholar,PIN066774,1728
FCDO,CSC,15/12/2023,Scholar Allowances,Award Costs,Scholar,PIN066775,870
FCDO,CSC,15/12/2023,Scholar Allowances,Award Costs,Scholar,PIN066776,870
FCDO,CSC,15/12/2023,Scholar Allowances,Award Costs,Scholar,PIN066777,870
FCDO,CSC,15/12/2023,Scholar Allowances,Award Costs,Scholar,PIN066779,870
FCDO,CSC,15/12/2023,Scholar Allowances,Award Costs,Scholar,PIN066780,1731
FCDO,CSC,15/12/2023,Scholar Allowances,Award Costs,Scholar,PIN066782,870
FCDO,CSC,15/12/2023,Scholar Allowances,Award Costs,Scholar,PIN066783,2160
FCDO,CSC,15/12/2023,Scholar Allowances,Award Costs,Scholar,PIN066784,1299
FCDO,CSC,15/12/2023,Scholar Allowances,Award Costs,Scholar,PIN066785,1731
FCDO,CSC,15/12/2023,Scholar Allowances,Award Costs,Scholar,PIN066786,2018.69
FCDO,CSC,15/12/2023,Scholar Allowances,Award Costs,Scholar,PIN066787,1728
FCDO,CSC,15/12/2023,Scholar Allowances,Award Costs,Scholar,PIN066789,1299
FCDO,CSC,15/12/2023,Scholar Allowances,Award Costs,Scholar,PIN066790,870
FCDO,CSC,15/12/2023,Scholar Allowances,Award Costs,Scholar,PIN066791,1726
FCDO,CSC,15/12/2023,Scholar Allowances,Award Costs,Scholar,PIN066792,1299
FCDO,CSC,15/12/2023,Scholar Allowances,Award Costs,Scholar,PIN066793,1728
FCDO,CSC,15/12/2023,Scholar Allowances,Award Costs,Scholar,PIN066794,1299
FCDO,CSC,15/12/2023,Scholar Allowances,Award Costs,Scholar,PIN066795,1728
FCDO,CSC,15/12/2023,Scholar Allowances,Award Costs,Scholar,PIN066796,1299
FCDO,CSC,15/12/2023,Scholar Allowances,Award Costs,Scholar,PIN066797,1728
FCDO,CSC,15/12/2023,Scholar Allowances,Award Costs,Scholar,PIN066798,1440
FCDO,CSC,15/12/2023,Scholar Allowances,Award Costs,Scholar,PIN066799,595.96
FCDO,CSC,15/12/2023,Scholar Allowances,Award Costs,Scholar,PIN066800,870
FCDO,CSC,15/12/2023,Scholar Allowances,Award Costs,Scholar,PIN066801,1299
FCDO,CSC,15/12/2023,Scholar Allowances,Award Costs,Scholar,PIN066802,1341.24
FCDO,CSC,15/12/2023,Scholar Allowances,Award Costs,Scholar,PIN066803,1728
FCDO,CSC,15/12/2023,Scholar Allowances,Award Costs,Scholar,PIN066804,870
FCDO,CSC,15/12/2023,Scholar Allowances,Award Costs,Scholar,PIN066806,1299
FCDO,CSC,15/12/2023,Scholar Allowances,Award Costs,Scholar,PIN066807,1154
FCDO,CSC,15/12/2023,Scholar Allowances,Award Costs,Scholar,PIN066808,870
FCDO,CSC,15/12/2023,Scholar Allowances,Award Costs,Scholar,PIN066809,1299
FCDO,CSC,15/12/2023,Scholar Allowances,Award Costs,Scholar,PIN066810,1728
FCDO,CSC,15/12/2023,Scholar Allowances,Award Costs,Scholar,PIN066811,1299
FCDO,CSC,15/12/2023,Scholar Allowances,Award Costs,Scholar,PIN066814,1728
FCDO,CSC,15/12/2023,Scholar Allowances,Award Costs,Scholar,PIN066815,870
FCDO,CSC,15/12/2023,Scholar Allowances,Award Costs,Scholar,PIN066816,870
FCDO,CSC,15/12/2023,Scholar Allowances,Award Costs,Scholar,PIN066817,1731
FCDO,CSC,15/12/2023,Scholar Allowances,Award Costs,Scholar,PIN066818,870
FCDO,CSC,15/12/2023,Scholar Allowances,Award Costs,Scholar,PIN066819,1299
FCDO,CSC,15/12/2023,Scholar Allowances,Award Costs,Scholar,PIN066820,1299
FCDO,CSC,15/12/2023,Scholar Allowances,Award Costs,Scholar,PIN066821,870
FCDO,CSC,15/12/2023,Scholar Allowances,Award Costs,Scholar,PIN066822,1299
FCDO,CSC,15/12/2023,Scholar Allowances,Award Costs,Scholar,PIN066823,1728
FCDO,CSC,15/12/2023,Scholar Allowances,Award Costs,Scholar,PIN066824,870
FCDO,CSC,15/12/2023,Scholar Allowances,Award Costs,Scholar,PIN066825,1299
FCDO,CSC,15/12/2023,Scholar Allowances,Award Costs,Scholar,PIN066826,1973.83
FCDO,CSC,15/12/2023,Scholar Allowances,Award Costs,Scholar,PIN066827,2160
FCDO,CSC,15/12/2023,Scholar Allowances,Award Costs,Scholar,PIN066828,870
FCDO,CSC,15/12/2023,Scholar Allowances,Award Costs,Scholar,PIN066829,1299
FCDO,CSC,15/12/2023,Scholar Allowances,Award Costs,Scholar,PIN066830,870
FCDO,CSC,15/12/2023,Scholar Allowances,Award Costs,Scholar,PIN066831,870
FCDO,CSC,15/12/2023,Scholar Allowances,Award Costs,Scholar,PIN066832,1728
FCDO,CSC,15/12/2023,Scholar Allowances,Award Costs,Scholar,PIN066833,1731
FCDO,CSC,15/12/2023,Scholar Allowances,Award Costs,Scholar,PIN066834,870
FCDO,CSC,15/12/2023,Scholar Allowances,Award Costs,Scholar,PIN066835,1299
FCDO,CSC,15/12/2023,Scholar Allowances,Award Costs,Scholar,PIN066836,1728
FCDO,CSC,15/12/2023,Scholar Allowances,Award Costs,Scholar,PIN066837,870
FCDO,CSC,15/12/2023,Scholar Allowances,Award Costs,Scholar,PIN066838,870
FCDO,CSC,15/12/2023,Scholar Allowances,Award Costs,Scholar,PIN066839,870
FCDO,CSC,15/12/2023,Scholar Allowances,Award Costs,Scholar,PIN066842,870
FCDO,CSC,15/12/2023,Scholar Allowances,Award Costs,Scholar,PIN066843,870
FCDO,CSC,15/12/2023,Scholar Allowances,Award Costs,Scholar,PIN066844,2160
FCDO,CSC,15/12/2023,Scholar Allowances,Award Costs,Scholar,PIN066845,1728
FCDO,CSC,15/12/2023,Scholar Allowances,Award Costs,Scholar,PIN066846,1299
FCDO,CSC,15/12/2023,Scholar Allowances,Award Costs,Scholar,PIN066847,870
FCDO,CSC,15/12/2023,Scholar Allowances,Award Costs,Scholar,PIN066848,870
FCDO,CSC,15/12/2023,Scholar Allowances,Award Costs,Scholar,PIN066849,1731
FCDO,CSC,15/12/2023,Scholar Allowances,Award Costs,Scholar,PIN066850,1731
FCDO,CSC,15/12/2023,Scholar Allowances,Award Costs,Scholar,PIN066851,1152
FCDO,CSC,15/12/2023,Scholar Allowances,Award Costs,Scholar,PIN066852,1299
FCDO,CSC,15/12/2023,Scholar Allowances,Award Costs,Scholar,PIN066853,1728
FCDO,CSC,15/12/2023,Scholar Allowances,Award Costs,Scholar,PIN066854,870
FCDO,CSC,15/12/2023,Scholar Allowances,Award Costs,Scholar,PIN066855,1728
FCDO,CSC,15/12/2023,Scholar Allowances,Award Costs,Scholar,PIN066857,870
FCDO,CSC,15/12/2023,Scholar Allowances,Award Costs,Scholar,PIN066859,1495.87
FCDO,CSC,15/12/2023,Scholar Allowances,Award Costs,Scholar,PIN066860,870
FCDO,CSC,15/12/2023,Scholar Allowances,Award Costs,Scholar,PIN066861,870
FCDO,CSC,15/12/2023,Scholar Allowances,Award Costs,Scholar,PIN066862,870
FCDO,CSC,15/12/2023,Scholar Allowances,Award Costs,Scholar,PIN066863,870
FCDO,CSC,15/12/2023,Scholar Allowances,Award Costs,Scholar,PIN066865,870
FCDO,CSC,15/12/2023,Scholar Allowances,Award Costs,Scholar,PIN066866,870
FCDO,CSC,15/12/2023,Scholar Allowances,Award Costs,Scholar,PIN066867,870
FCDO,CSC,15/12/2023,Scholar Allowances,Award Costs,Scholar,PIN066868,870
FCDO,CSC,15/12/2023,Scholar Allowances,Award Costs,Scholar,PIN066869,870
FCDO,CSC,15/12/2023,Scholar Allowances,Award Costs,Scholar,PIN066870,870
FCDO,CSC,15/12/2023,Scholar Allowances,Award Costs,Scholar,PIN066871,1312.32
FCDO,CSC,15/12/2023,Scholar Allowances,Award Costs,Scholar,PIN066872,870
FCDO,CSC,15/12/2023,Scholar Allowances,Award Costs,Scholar,PIN066873,870
FCDO,CSC,15/12/2023,Scholar Allowances,Award Costs,Scholar,PIN066875,870
FCDO,CSC,15/12/2023,Scholar Allowances,Award Costs,Scholar,PIN066877,870
FCDO,CSC,15/12/2023,Scholar Allowances,Award Costs,Scholar,PIN066878,870
FCDO,CSC,15/12/2023,Scholar Allowances,Award Costs,Scholar,PIN066879,870
FCDO,CSC,15/12/2023,Scholar Allowances,Award Costs,Scholar,PIN066880,870
FCDO,CSC,15/12/2023,Scholar Allowances,Award Costs,Scholar,PIN066882,870
FCDO,CSC,15/12/2023,Scholar Allowances,Award Costs,Scholar,PIN066883,870
FCDO,CSC,15/12/2023,Scholar Allowances,Award Costs,Scholar,PIN066884,870
FCDO,CSC,15/12/2023,Scholar Allowances,Award Costs,Scholar,PIN066885,870
FCDO,CSC,15/12/2023,Scholar Allowances,Award Costs,Scholar,PIN066886,870
FCDO,CSC,15/12/2023,Scholar Allowances,Award Costs,Scholar,PIN066887,870
FCDO,CSC,15/12/2023,Scholar Allowances,Award Costs,Scholar,PIN066888,870
FCDO,CSC,15/12/2023,Scholar Allowances,Award Costs,Scholar,PIN066889,870
FCDO,CSC,15/12/2023,Scholar Allowances,Award Costs,Scholar,PIN066890,675.28
FCDO,CSC,15/12/2023,Scholar Allowances,Award Costs,Scholar,PIN066891,870
FCDO,CSC,15/12/2023,Scholar Allowances,Award Costs,Scholar,PIN066892,870
FCDO,CSC,15/12/2023,Scholar Allowances,Award Costs,Scholar,PIN066893,870
FCDO,CSC,15/12/2023,Scholar Allowances,Award Costs,Scholar,PIN066894,870
FCDO,CSC,15/12/2023,Scholar Allowances,Award Costs,Scholar,PIN066895,870
FCDO,CSC,15/12/2023,Scholar Allowances,Award Costs,Scholar,PIN066898,870
FCDO,CSC,15/12/2023,Scholar Allowances,Award Costs,Scholar,PIN066899,870
FCDO,CSC,15/12/2023,Scholar Allowances,Award Costs,Scholar,PIN066900,870
FCDO,CSC,15/12/2023,Scholar Allowances,Award Costs,Scholar,PIN066901,870
FCDO,CSC,15/12/2023,Scholar Allowances,Award Costs,Scholar,PIN066902,870
FCDO,CSC,15/12/2023,Scholar Allowances,Award Costs,Scholar,PIN066903,870
FCDO,CSC,15/12/2023,Scholar Allowances,Award Costs,Scholar,PIN066904,870
FCDO,CSC,15/12/2023,Scholar Allowances,Award Costs,Scholar,PIN066905,870
FCDO,CSC,15/12/2023,Scholar Allowances,Award Costs,Scholar,PIN066906,870
FCDO,CSC,15/12/2023,Scholar Allowances,Award Costs,Scholar,PIN066907,870
FCDO,CSC,15/12/2023,Scholar Allowances,Award Costs,Scholar,PIN066908,870
FCDO,CSC,15/12/2023,Scholar Allowances,Award Costs,Scholar,PIN066909,1321.84
FCDO,CSC,15/12/2023,Scholar Allowances,Award Costs,Scholar,PIN066910,870
FCDO,CSC,15/12/2023,Scholar Allowances,Award Costs,Scholar,PIN066911,870
FCDO,CSC,15/12/2023,Scholar Allowances,Award Costs,Scholar,PIN066912,870
FCDO,CSC,15/12/2023,Scholar Allowances,Award Costs,Scholar,PIN066913,870
FCDO,CSC,15/12/2023,Scholar Allowances,Award Costs,Scholar,PIN066914,870
FCDO,CSC,15/12/2023,Scholar Allowances,Award Costs,Scholar,PIN066915,870
FCDO,CSC,15/12/2023,Scholar Allowances,Award Costs,Scholar,PIN066916,870
FCDO,CSC,15/12/2023,Scholar Allowances,Award Costs,Scholar,PIN066917,870
FCDO,CSC,15/12/2023,Scholar Allowances,Award Costs,Scholar,PIN066918,870
FCDO,CSC,15/12/2023,Scholar Allowances,Award Costs,Scholar,PIN066919,870
FCDO,CSC,15/12/2023,Scholar Allowances,Award Costs,Scholar,PIN066920,870
FCDO,CSC,15/12/2023,Scholar Allowances,Award Costs,Scholar,PIN066921,870
FCDO,CSC,15/12/2023,Scholar Allowances,Award Costs,Scholar,PIN066922,870
FCDO,CSC,15/12/2023,Scholar Allowances,Award Costs,Scholar,PIN066926,870
FCDO,CSC,15/12/2023,Scholar Allowances,Award Costs,Scholar,PIN066927,870
FCDO,CSC,15/12/2023,Scholar Allowances,Award Costs,Scholar,PIN066928,870
FCDO,CSC,15/12/2023,Scholar Allowances,Award Costs,Scholar,PIN066929,870
FCDO,CSC,15/12/2023,Scholar Allowances,Award Costs,Scholar,PIN066930,870
FCDO,CSC,15/12/2023,Scholar Allowances,Award Costs,Scholar,PIN066931,870
FCDO,CSC,15/12/2023,Scholar Allowances,Award Costs,Scholar,PIN066932,870
FCDO,CSC,15/12/2023,Scholar Allowances,Award Costs,Scholar,PIN066933,870
FCDO,CSC,15/12/2023,Scholar Stipend,Award Costs,Scholar,PIN067101,759.92
FCDO,CSC,15/12/2023,Scholar Stipend,Award Costs,Scholar,PIN067102,771.54
FCDO,CSC,15/12/2023,Scholar Stipend,Award Costs,Scholar,PIN067103,642.35
FCDO,CSC,15/12/2023,Scholar Stipend,Award Costs,Scholar,PIN067106,569.94
FCDO,CSC,15/12/2023,Scholar Stipend,Award Costs,Scholar,PIN067107,619.64
FCDO,CSC,15/12/2023,Scholar Allowances,Award Costs,Scholar,PIN067393,600
FCDO,CSC,15/12/2023,Scholar Allowances,Award Costs,Scholar,PIN067394,600
FCDO,CSC,15/12/2023,Scholar Allowances,Award Costs,Scholar,PIN067395,542.85
FCDO,CSC,15/12/2023,Scholar Allowances,Award Costs,Scholar,PIN067397,600
FCDO,CSC,15/12/2023,Scholar Allowances,Award Costs,Scholar,PIN067398,600
FCDO,CSC,15/12/2023,Scholar Allowances,Award Costs,Scholar,PIN067399,600
FCDO,CSC,15/12/2023,Scholar Allowances,Award Costs,Scholar,PIN067400,600
FCDO,CSC,15/12/2023,Scholar Allowances,Award Costs,Scholar,PIN067402,600
FCDO,CSC,15/12/2023,Scholar Allowances,Award Costs,Scholar,PIN067403,600
FCDO,CSC,15/12/2023,Scholar Allowances,Award Costs,Scholar,PIN067404,600
FCDO,CSC,15/12/2023,Scholar Allowances,Award Costs,Scholar,PIN067406,600
FCDO,CSC,15/12/2023,Scholar Allowances,Award Costs,Scholar,PIN067408,600
FCDO,CSC,15/12/2023,Scholar Allowances,Award Costs,Scholar,PIN067409,600
FCDO,CSC,15/12/2023,Scholar Allowances,Award Costs,Scholar,PIN067410,600
FCDO,CSC,15/12/2023,Scholar Allowances,Award Costs,Scholar,PIN067413,600
FCDO,CSC,15/12/2023,Scholar Allowances,Award Costs,Scholar,PIN067415,600
FCDO,CSC,15/12/2023,Scholar Allowances,Award Costs,Scholar,PIN067416,600
FCDO,CSC,15/12/2023,Scholar Allowances,Award Costs,Scholar,PIN067420,600
FCDO,CSC,15/12/2023,Scholar Allowances,Award Costs,Scholar,PIN067428,600
FCDO,CSC,15/12/2023,Scholar Allowances,Award Costs,Scholar,PIN067432,600
FCDO,CSC,15/12/2023,Scholar Allowances,Award Costs,Scholar,PIN067433,600
FCDO,CSC,15/12/2023,Scholar Allowances,Award Costs,Scholar,PIN067434,600
FCDO,CSC,15/12/2023,Scholar Allowances,Award Costs,Scholar,PIN067435,600
FCDO,CSC,15/12/2023,Scholar Allowances,Award Costs,Scholar,PIN067436,600
FCDO,CSC,15/12/2023,Scholar Allowances,Award Costs,Scholar,PIN067437,600
FCDO,CSC,15/12/2023,Scholar Allowances,Award Costs,Scholar,PIN067438,600
FCDO,CSC,15/12/2023,Scholar Allowances,Award Costs,Scholar,PIN067439,600
FCDO,CSC,15/12/2023,Scholar Allowances,Award Costs,Scholar,PIN067440,600
FCDO,CSC,15/12/2023,Scholar Allowances,Award Costs,Scholar,PIN067441,600
FCDO,CSC,15/12/2023,Scholar Allowances,Award Costs,Scholar,PIN067442,600
FCDO,CSC,15/12/2023,Scholar Allowances,Award Costs,Scholar,PIN067443,600
FCDO,CSC,15/12/2023,Scholar Allowances,Award Costs,Scholar,PIN067444,600
FCDO,CSC,15/12/2023,Scholar Allowances,Award Costs,Scholar,PIN067445,600
FCDO,CSC,15/12/2023,Scholar Allowances,Award Costs,Scholar,PIN067446,600
FCDO,CSC,15/12/2023,Scholar Allowances,Award Costs,Scholar,PIN067447,600
FCDO,CSC,15/12/2023,Scholar Allowances,Award Costs,Scholar,PIN067449,600
FCDO,CSC,15/12/2023,Scholar Allowances,Award Costs,Scholar,PIN067450,600
FCDO,CSC,15/12/2023,Scholar Allowances,Award Costs,Scholar,PIN067451,600
FCDO,CSC,15/12/2023,Scholar Allowances,Award Costs,Scholar,PIN067452,600
FCDO,CSC,15/12/2023,Scholar Allowances,Award Costs,Scholar,PIN067453,600
FCDO,CSC,15/12/2023,Scholar Allowances,Award Costs,Scholar,PIN067454,600
FCDO,CSC,15/12/2023,Scholar Allowances,Award Costs,Scholar,PIN067455,600
FCDO,CSC,15/12/2023,Scholar Allowances,Award Costs,Scholar,PIN067456,600
FCDO,CSC,15/12/2023,Scholar Allowances,Award Costs,Scholar,PIN067460,600
FCDO,CSC,15/12/2023,Scholar Allowances,Award Costs,Scholar,PIN067462,600
FCDO,CSC,15/12/2023,Scholar Allowances,Award Costs,Scholar,PIN067463,600
FCDO,CSC,15/12/2023,Scholar Allowances,Award Costs,Scholar,PIN067464,600
FCDO,CSC,15/12/2023,Scholar Allowances,Award Costs,Scholar,PIN067465,600
FCDO,CSC,15/12/2023,Scholar Allowances,Award Costs,Scholar,PIN067468,600
FCDO,CSC,15/12/2023,Scholar Allowances,Award Costs,Scholar,PIN067469,600
FCDO,CSC,15/12/2023,Scholar Allowances,Award Costs,Scholar,PIN067470,600
FCDO,CSC,15/12/2023,Scholar Allowances,Award Costs,Scholar,PIN067472,600
FCDO,CSC,15/12/2023,Scholar Allowances,Award Costs,Scholar,PIN067476,600
FCDO,CSC,15/12/2023,Scholar Allowances,Award Costs,Scholar,PIN067477,600
FCDO,CSC,15/12/2023,Scholar Allowances,Award Costs,Scholar,PIN067478,600
FCDO,CSC,15/12/2023,Scholar Allowances,Award Costs,Scholar,PIN067479,600
FCDO,CSC,15/12/2023,Scholar Allowances,Award Costs,Scholar,PIN067481,600
FCDO,CSC,15/12/2023,Scholar Allowances,Award Costs,Scholar,PIN067482,600
FCDO,CSC,15/12/2023,Scholar Allowances,Award Costs,Scholar,PIN067483,600
FCDO,CSC,15/12/2023,Scholar Allowances,Award Costs,Scholar,PIN067486,600
FCDO,CSC,15/12/2023,Scholar Allowances,Award Costs,Scholar,PIN067487,600
FCDO,CSC,15/12/2023,Scholar Allowances,Award Costs,Scholar,PIN067489,600
FCDO,CSC,15/12/2023,Scholar Allowances,Award Costs,Scholar,PIN067490,600
FCDO,CSC,15/12/2023,Scholar Allowances,Award Costs,Scholar,PIN067491,600
FCDO,CSC,15/12/2023,Scholar Allowances,Award Costs,Scholar,PIN067492,600
FCDO,CSC,15/12/2023,Scholar Allowances,Award Costs,Scholar,PIN067494,600
FCDO,CSC,15/12/2023,Scholar Allowances,Award Costs,Scholar,PIN067496,600
FCDO,CSC,15/12/2023,Scholar Allowances,Award Costs,Scholar,PIN067497,600
FCDO,CSC,15/12/2023,Scholar Allowances,Award Costs,Scholar,PIN067498,600
FCDO,CSC,15/12/2023,Scholar Allowances,Award Costs,Scholar,PIN067499,600
FCDO,CSC,15/12/2023,Scholar Allowances,Award Costs,Scholar,PIN067500,600
FCDO,CSC,15/12/2023,Scholar Allowances,Award Costs,Scholar,PIN067501,600
FCDO,CSC,15/12/2023,Scholar Allowances,Award Costs,Scholar,PIN067506,600
FCDO,CSC,15/12/2023,Scholar Allowances,Award Costs,Scholar,PIN067508,600
FCDO,CSC,15/12/2023,Scholar Allowances,Award Costs,Scholar,PIN067509,502
FCDO,CSC,15/12/2023,Scholar Allowances,Award Costs,Scholar,PIN067510,600
FCDO,CSC,15/12/2023,Scholar Allowances,Award Costs,Scholar,PIN067511,600
FCDO,CSC,15/12/2023,Scholar Allowances,Award Costs,Scholar,PIN067512,600
FCDO,CSC,15/12/2023,Scholar Allowances,Award Costs,Scholar,PIN067514,600
FCDO,CSC,15/12/2023,Scholar Allowances,Award Costs,Scholar,PIN067515,600
FCDO,CSC,15/12/2023,Scholar Allowances,Award Costs,Scholar,PIN067516,600
FCDO,CSC,15/12/2023,Scholar Allowances,Award Costs,Scholar,PIN067517,600
FCDO,CSC,15/12/2023,Scholar Allowances,Award Costs,Scholar,PIN067518,600
FCDO,CSC,15/12/2023,Scholar Allowances,Award Costs,Scholar,PIN067520,600
FCDO,CSC,15/12/2023,Scholar Allowances,Award Costs,Scholar,PIN067521,600
FCDO,CSC,15/12/2023,Scholar Allowances,Award Costs,Scholar,PIN067523,600
FCDO,CSC,15/12/2023,Scholar Allowances,Award Costs,Scholar,PIN067524,600
FCDO,CSC,15/12/2023,Scholar Allowances,Award Costs,Scholar,PIN067525,600
FCDO,CSC,15/12/2023,Scholar Allowances,Award Costs,Scholar,PIN067527,600
FCDO,CSC,15/12/2023,Scholar Allowances,Award Costs,Scholar,PIN067529,600
FCDO,CSC,15/12/2023,Scholar Allowances,Award Costs,Scholar,PIN067532,600
FCDO,CSC,15/12/2023,Scholar Allowances,Award Costs,Scholar,PIN067534,600
FCDO,CSC,15/12/2023,Scholar Allowances,Award Costs,Scholar,PIN067535,600
FCDO,CSC,15/12/2023,Scholar Allowances,Award Costs,Scholar,PIN067536,600
FCDO,CSC,15/12/2023,Scholar Allowances,Award Costs,Scholar,PIN067539,600
FCDO,CSC,15/12/2023,Scholar Allowances,Award Costs,Scholar,PIN067540,600
FCDO,CSC,15/12/2023,Scholar Allowances,Award Costs,Scholar,PIN067541,600
FCDO,CSC,15/12/2023,Scholar Allowances,Award Costs,Scholar,PIN067542,600
FCDO,CSC,15/12/2023,Scholar Allowances,Award Costs,Scholar,PIN067545,600
FCDO,CSC,15/12/2023,Scholar Allowances,Award Costs,Scholar,PIN067546,600
FCDO,CSC,15/12/2023,Scholar Allowances,Award Costs,Scholar,PIN067548,600
FCDO,CSC,15/12/2023,Scholar Allowances,Award Costs,Scholar,PIN067550,600
FCDO,CSC,15/12/2023,Scholar Allowances,Award Costs,Scholar,PIN067551,600
FCDO,CSC,15/12/2023,Scholar Allowances,Award Costs,Scholar,PIN067552,600
FCDO,CSC,15/12/2023,Scholar Allowances,Award Costs,Scholar,PIN067553,600
FCDO,CSC,15/12/2023,Scholar Allowances,Award Costs,Scholar,PIN067554,600
FCDO,CSC,15/12/2023,Scholar Allowances,Award Costs,Scholar,PIN067555,600
FCDO,CSC,15/12/2023,Scholar Allowances,Award Costs,Scholar,PIN067556,600
FCDO,CSC,15/12/2023,Scholar Allowances,Award Costs,Scholar,PIN067557,600
FCDO,CSC,15/12/2023,Scholar Allowances,Award Costs,Scholar,PIN067559,600
FCDO,CSC,15/12/2023,Scholar Allowances,Award Costs,Scholar,PIN067560,600
FCDO,CSC,15/12/2023,Scholar Allowances,Award Costs,Scholar,PIN067561,600
FCDO,CSC,15/12/2023,Scholar Allowances,Award Costs,Scholar,PIN067562,600
FCDO,CSC,15/12/2023,Scholar Allowances,Award Costs,Scholar,PIN067564,600
FCDO,CSC,15/12/2023,Scholar Allowances,Award Costs,Scholar,PIN067566,600
FCDO,CSC,15/12/2023,Scholar Allowances,Award Costs,Scholar,PIN067567,600
FCDO,CSC,15/12/2023,Scholar Allowances,Award Costs,Scholar,PIN067568,600
FCDO,CSC,15/12/2023,Scholar Allowances,Award Costs,Scholar,PIN067569,600
FCDO,CSC,15/12/2023,Scholar Allowances,Award Costs,Scholar,PIN067570,600
FCDO,CSC,15/12/2023,Scholar Allowances,Award Costs,Scholar,PIN067571,600
FCDO,CSC,15/12/2023,Scholar Allowances,Award Costs,Scholar,PIN067572,600
FCDO,CSC,15/12/2023,Scholar Allowances,Award Costs,Scholar,PIN067575,600
FCDO,CSC,15/12/2023,Scholar Allowances,Award Costs,Scholar,PIN067577,600
FCDO,CSC,15/12/2023,Scholar Allowances,Award Costs,Scholar,PIN067578,600
FCDO,CSC,15/12/2023,Scholar Allowances,Award Costs,Scholar,PIN067579,600
FCDO,CSC,15/12/2023,Scholar Allowances,Award Costs,Scholar,PIN067580,600
FCDO,CSC,15/12/2023,Scholar Allowances,Award Costs,Scholar,PIN067583,600
FCDO,CSC,15/12/2023,Scholar Allowances,Award Costs,Scholar,PIN067584,600
FCDO,CSC,15/12/2023,Scholar Allowances,Award Costs,Scholar,PIN067585,600
FCDO,CSC,15/12/2023,Scholar Allowances,Award Costs,Scholar,PIN067587,600
FCDO,CSC,15/12/2023,Scholar Allowances,Award Costs,Scholar,PIN067588,600
FCDO,CSC,15/12/2023,Scholar Allowances,Award Costs,Scholar,PIN067590,600
FCDO,CSC,15/12/2023,Scholar Allowances,Award Costs,Scholar,PIN067592,600
FCDO,CSC,15/12/2023,Scholar Allowances,Award Costs,Scholar,PIN067593,600
FCDO,CSC,15/12/2023,Scholar Allowances,Award Costs,Scholar,PIN067597,600
FCDO,CSC,15/12/2023,Scholar Allowances,Award Costs,Scholar,PIN067598,600
FCDO,CSC,15/12/2023,Scholar Allowances,Award Costs,Scholar,PIN067601,600
FCDO,CSC,15/12/2023,Scholar Allowances,Award Costs,Scholar,PIN067602,600
FCDO,CSC,15/12/2023,Scholar Allowances,Award Costs,Scholar,PIN067603,600
FCDO,CSC,15/12/2023,Scholar Allowances,Award Costs,Scholar,PIN067604,600
FCDO,CSC,15/12/2023,Scholar Allowances,Award Costs,Scholar,PIN067605,600
FCDO,CSC,15/12/2023,Scholar Allowances,Award Costs,Scholar,PIN067607,600
FCDO,CSC,15/12/2023,Scholar Allowances,Award Costs,Scholar,PIN067609,600
FCDO,CSC,15/12/2023,Scholar Allowances,Award Costs,Scholar,PIN067611,600
FCDO,CSC,15/12/2023,Scholar Allowances,Award Costs,Scholar,PIN067612,600
FCDO,CSC,15/12/2023,Scholar Allowances,Award Costs,Scholar,PIN067613,600
FCDO,CSC,15/12/2023,Scholar Allowances,Award Costs,Scholar,PIN067614,600
FCDO,CSC,15/12/2023,Scholar Allowances,Award Costs,Scholar,PIN067616,600
FCDO,CSC,15/12/2023,Scholar Allowances,Award Costs,Scholar,PIN067617,600
FCDO,CSC,15/12/2023,Scholar Allowances,Award Costs,Scholar,PIN067618,600
FCDO,CSC,15/12/2023,Scholar Allowances,Award Costs,Scholar,PIN067619,600
FCDO,CSC,15/12/2023,Scholar Allowances,Award Costs,Scholar,PIN067620,600
FCDO,CSC,15/12/2023,Scholar Allowances,Award Costs,Scholar,PIN067621,600
FCDO,CSC,15/12/2023,Scholar Allowances,Award Costs,Scholar,PIN067622,600
FCDO,CSC,15/12/2023,Scholar Allowances,Award Costs,Scholar,PIN067624,600
FCDO,CSC,15/12/2023,Scholar Allowances,Award Costs,Scholar,PIN067625,600
FCDO,CSC,15/12/2023,Scholar Allowances,Award Costs,Scholar,PIN067626,600
FCDO,CSC,15/12/2023,Scholar Allowances,Award Costs,Scholar,PIN067627,600
FCDO,CSC,15/12/2023,Scholar Allowances,Award Costs,Scholar,PIN067628,600
FCDO,CSC,15/12/2023,Scholar Allowances,Award Costs,Scholar,PIN067629,600
FCDO,CSC,15/12/2023,Scholar Allowances,Award Costs,Scholar,PIN067630,600
FCDO,CSC,15/12/2023,Scholar Allowances,Award Costs,Scholar,PIN067631,528.2
FCDO,CSC,15/12/2023,Scholar Allowances,Award Costs,Scholar,PIN067632,600
FCDO,CSC,15/12/2023,Scholar Allowances,Award Costs,Scholar,PIN067633,600
FCDO,CSC,15/12/2023,Scholar Allowances,Award Costs,Scholar,PIN067635,600
FCDO,CSC,15/12/2023,Scholar Allowances,Award Costs,Scholar,PIN067636,600
FCDO,CSC,15/12/2023,Scholar Allowances,Award Costs,Scholar,PIN067637,600
FCDO,CSC,15/12/2023,Scholar Allowances,Award Costs,Scholar,PIN067638,600
FCDO,CSC,15/12/2023,Scholar Allowances,Award Costs,Scholar,PIN067639,600
FCDO,CSC,15/12/2023,Scholar Allowances,Award Costs,Scholar,PIN067640,600
FCDO,CSC,15/12/2023,Scholar Allowances,Award Costs,Scholar,PIN067641,600
FCDO,CSC,15/12/2023,Scholar Allowances,Award Costs,Scholar,PIN067642,600
FCDO,CSC,15/12/2023,Scholar Allowances,Award Costs,Scholar,PIN067643,600
FCDO,CSC,15/12/2023,Scholar Allowances,Award Costs,Scholar,PIN067644,600
FCDO,CSC,15/12/2023,Scholar Allowances,Award Costs,Scholar,PIN067645,600
FCDO,CSC,15/12/2023,Scholar Allowances,Award Costs,Scholar,PIN067646,505
FCDO,CSC,15/12/2023,Scholar Allowances,Award Costs,Scholar,PIN067647,600
FCDO,CSC,15/12/2023,Scholar Allowances,Award Costs,Scholar,PIN067648,600
FCDO,CSC,15/12/2023,Scholar Allowances,Award Costs,Scholar,PIN067649,600
FCDO,CSC,15/12/2023,Scholar Allowances,Award Costs,Scholar,PIN067650,600
FCDO,CSC,15/12/2023,Scholar Allowances,Award Costs,Scholar,PIN067651,600
FCDO,CSC,15/12/2023,Scholar Allowances,Award Costs,Scholar,PIN067652,600
FCDO,CSC,15/12/2023,Scholar Allowances,Award Costs,Scholar,PIN067653,600
FCDO,CSC,15/12/2023,Scholar Allowances,Award Costs,Scholar,PIN067655,600
FCDO,CSC,15/12/2023,Scholar Allowances,Award Costs,Scholar,PIN067656,600
FCDO,CSC,15/12/2023,Scholar Allowances,Award Costs,Scholar,PIN067658,600
FCDO,CSC,15/12/2023,Scholar Allowances,Award Costs,Scholar,PIN067659,600
FCDO,CSC,15/12/2023,Scholar Allowances,Award Costs,Scholar,PIN067660,600
FCDO,CSC,15/12/2023,Scholar Allowances,Award Costs,Scholar,PIN067662,600
FCDO,CSC,15/12/2023,Scholar Allowances,Award Costs,Scholar,PIN067664,600
FCDO,CSC,15/12/2023,Scholar Allowances,Award Costs,Scholar,PIN067665,600
FCDO,CSC,15/12/2023,Scholar Allowances,Award Costs,Scholar,PIN067668,550.56
FCDO,CSC,15/12/2023,Scholar Allowances,Award Costs,Scholar,PIN067669,600
FCDO,CSC,15/12/2023,Scholar Allowances,Award Costs,Scholar,PIN067674,600
FCDO,CSC,15/12/2023,Scholar Allowances,Award Costs,Scholar,PIN067675,600
FCDO,CSC,15/12/2023,Scholar Allowances,Award Costs,Scholar,PIN067676,600
FCDO,CSC,15/12/2023,Scholar Allowances,Award Costs,Scholar,PIN067679,600
FCDO,CSC,15/12/2023,Scholar Allowances,Award Costs,Scholar,PIN067680,600
FCDO,CSC,15/12/2023,Scholar Allowances,Award Costs,Scholar,PIN067682,600
FCDO,CSC,15/12/2023,Scholar Allowances,Award Costs,Scholar,PIN067683,600
FCDO,CSC,15/12/2023,Scholar Allowances,Award Costs,Scholar,PIN067684,600
FCDO,CSC,15/12/2023,Scholar Allowances,Award Costs,Scholar,PIN067685,600
FCDO,CSC,15/12/2023,Scholar Allowances,Award Costs,Scholar,PIN067686,600
FCDO,CSC,15/12/2023,Scholar Allowances,Award Costs,Scholar,PIN067687,600
FCDO,CSC,15/12/2023,Scholar Allowances,Award Costs,Scholar,PIN067690,600
FCDO,CSC,15/12/2023,Scholar Allowances,Award Costs,Scholar,PIN067691,600
FCDO,CSC,15/12/2023,Scholar Allowances,Award Costs,Scholar,PIN067693,600
FCDO,CSC,15/12/2023,Scholar Allowances,Award Costs,Scholar,PIN067694,600
FCDO,CSC,15/12/2023,Scholar Allowances,Award Costs,Scholar,PIN067696,600
FCDO,CSC,15/12/2023,Scholar Allowances,Award Costs,Scholar,PIN067697,600
FCDO,CSC,15/12/2023,Scholar Allowances,Award Costs,Scholar,PIN067699,600
FCDO,CSC,15/12/2023,Scholar Allowances,Award Costs,Scholar,PIN067700,600
FCDO,CSC,15/12/2023,Scholar Allowances,Award Costs,Scholar,PIN067703,600
FCDO,CSC,15/12/2023,Scholar Allowances,Award Costs,Scholar,PIN067706,600
FCDO,CSC,15/12/2023,Scholar Allowances,Award Costs,Scholar,PIN067708,600
FCDO,CSC,15/12/2023,Scholar Allowances,Award Costs,Scholar,PIN067711,600
FCDO,CSC,15/12/2023,Scholar Allowances,Award Costs,Scholar,PIN067712,544
FCDO,CSC,15/12/2023,Scholar Allowances,Award Costs,Scholar,PIN067713,600
FCDO,CSC,15/12/2023,Scholar Allowances,Award Costs,Scholar,PIN067714,600
FCDO,CSC,15/12/2023,Scholar Allowances,Award Costs,Scholar,PIN067715,600
FCDO,CSC,15/12/2023,Scholar Allowances,Award Costs,Scholar,PIN067719,600
FCDO,CSC,15/12/2023,Scholar Allowances,Award Costs,Scholar,PIN067720,600
FCDO,CSC,15/12/2023,Scholar Allowances,Award Costs,Scholar,PIN067721,600
FCDO,CSC,15/12/2023,Scholar Allowances,Award Costs,Scholar,PIN067723,600
FCDO,CSC,15/12/2023,Scholar Allowances,Award Costs,Scholar,PIN067724,600
FCDO,CSC,15/12/2023,Scholar Allowances,Award Costs,Scholar,PIN067725,600
FCDO,CSC,15/12/2023,Scholar Allowances,Award Costs,Scholar,PIN067727,600
FCDO,CSC,15/12/2023,Scholar Allowances,Award Costs,Scholar,PIN067728,600
FCDO,CSC,15/12/2023,Scholar Allowances,Award Costs,Scholar,PIN067729,600
FCDO,CSC,15/12/2023,Scholar Allowances,Award Costs,Scholar,PIN067731,600
FCDO,CSC,15/12/2023,Scholar Allowances,Award Costs,Scholar,PIN067733,600
FCDO,CSC,15/12/2023,Scholar Allowances,Award Costs,Scholar,PIN067734,600
FCDO,CSC,15/12/2023,Scholar Allowances,Award Costs,Scholar,PIN067735,600
FCDO,CSC,15/12/2023,Scholar Allowances,Award Costs,Scholar,PIN067736,600
FCDO,CSC,15/12/2023,Scholar Allowances,Award Costs,Scholar,PIN067737,600
FCDO,CSC,15/12/2023,Scholar Allowances,Award Costs,Scholar,PIN067738,600
FCDO,CSC,15/12/2023,Scholar Allowances,Award Costs,Scholar,PIN067739,600
FCDO,CSC,15/12/2023,Scholar Allowances,Award Costs,Scholar,PIN067740,500
FCDO,CSC,15/12/2023,Scholar Allowances,Award Costs,Scholar,PIN067742,600
FCDO,CSC,15/12/2023,Scholar Allowances,Award Costs,Scholar,PIN067745,600
FCDO,CSC,15/12/2023,Scholar Allowances,Award Costs,Scholar,PIN067746,600
FCDO,CSC,15/12/2023,Scholar Allowances,Award Costs,Scholar,PIN067747,600
FCDO,CSC,15/12/2023,Scholar Allowances,Award Costs,Scholar,PIN067749,600
FCDO,CSC,15/12/2023,Scholar Allowances,Award Costs,Scholar,PIN067751,600
FCDO,CSC,15/12/2023,Scholar Allowances,Award Costs,Scholar,PIN067752,600
FCDO,CSC,15/12/2023,Scholar Allowances,Award Costs,Scholar,PIN067753,600
FCDO,CSC,15/12/2023,Scholar Allowances,Award Costs,Scholar,PIN067754,600
FCDO,CSC,15/12/2023,Scholar Allowances,Award Costs,Scholar,PIN067756,600
FCDO,CSC,15/12/2023,Scholar Allowances,Award Costs,Scholar,PIN067757,600
FCDO,CSC,15/12/2023,Scholar Allowances,Award Costs,Scholar,PIN067759,600
FCDO,CSC,15/12/2023,Scholar Allowances,Award Costs,Scholar,PIN067760,600
FCDO,CSC,15/12/2023,Scholar Allowances,Award Costs,Scholar,PIN067762,600
FCDO,CSC,15/12/2023,Scholar Allowances,Award Costs,Scholar,PIN067763,600
FCDO,CSC,15/12/2023,Scholar Allowances,Award Costs,Scholar,PIN067766,600
FCDO,CSC,15/12/2023,Scholar Allowances,Award Costs,Scholar,PIN067767,600
FCDO,CSC,15/12/2023,Scholar Allowances,Award Costs,Scholar,PIN067768,600
FCDO,CSC,15/12/2023,Scholar Allowances,Award Costs,Scholar,PIN067770,600
FCDO,CSC,15/12/2023,Scholar Allowances,Award Costs,Scholar,PIN067772,600
FCDO,CSC,15/12/2023,Scholar Allowances,Award Costs,Scholar,PIN067773,600
FCDO,CSC,15/12/2023,Scholar Allowances,Award Costs,Scholar,PIN067775,600
FCDO,CSC,15/12/2023,Scholar Allowances,Award Costs,Scholar,PIN067776,600
FCDO,CSC,15/12/2023,Scholar Allowances,Award Costs,Scholar,PIN067777,600
FCDO,CSC,15/12/2023,Scholar Allowances,Award Costs,Scholar,PIN067778,600
FCDO,CSC,15/12/2023,Scholar Allowances,Award Costs,Scholar,PIN067781,600
FCDO,CSC,15/12/2023,Scholar Allowances,Award Costs,Scholar,PIN067782,600
FCDO,CSC,15/12/2023,Scholar Allowances,Award Costs,Scholar,PIN067783,600
FCDO,CSC,15/12/2023,Scholar Allowances,Award Costs,Scholar,PIN067785,600
FCDO,CSC,15/12/2023,Scholar Allowances,Award Costs,Scholar,PIN067786,600
FCDO,CSC,15/12/2023,Scholar Allowances,Award Costs,Scholar,PIN067788,600
FCDO,CSC,15/12/2023,Scholar Allowances,Award Costs,Scholar,PIN067792,560
FCDO,CSC,15/12/2023,Scholar Allowances,Award Costs,Scholar,PIN067793,600
FCDO,CSC,15/12/2023,Scholar Allowances,Award Costs,Scholar,PIN067795,600
FCDO,CSC,15/12/2023,Scholar Allowances,Award Costs,Scholar,PIN067797,600
FCDO,CSC,15/12/2023,Scholar Allowances,Award Costs,Scholar,PIN067798,600
FCDO,CSC,15/12/2023,Scholar Allowances,Award Costs,Scholar,PIN067799,675
FCDO,CSC,15/12/2023,Scholar Allowances,Award Costs,Scholar,PIN067800,875
FCDO,CSC,15/12/2023,Scholar Allowances,Award Costs,Scholar,PIN067801,1500
FCDO,CSC,15/12/2023,Scholar Allowances,Award Costs,Scholar,PIN067802,1940
FCDO,CSC,15/12/2023,Scholar Allowances,Award Costs,Scholar,PIN067803,925
FCDO,CSC,15/12/2023,Scholar Stipend,Award Costs,Scholar,PIN067821,1701.03
FCDO,CSC,15/12/2023,Scholar Travel,Award Costs,Diversity Travel,PIN068057,1834.37
FCDO,CSC,15/12/2023,Scholar Travel,Award Costs,Diversity Travel,PIN068057,1143.02
FCDO,CSC,15/12/2023,Scholar Travel,Award Costs,Diversity Travel,PIN068057,1138.59
FCDO,CSC,15/12/2023,Scholar Travel,Award Costs,Diversity Travel,PIN068057,904.69
FCDO,CSC,15/12/2023,Scholar Travel,Award Costs,Diversity Travel,PIN068057,875.21
FCDO,CSC,15/12/2023,Scholar Travel,Award Costs,Diversity Travel,PIN068057,693.31
FCDO,CSC,15/12/2023,Scholar Travel,Award Costs,Diversity Travel,PIN068057,68.3
FCDO,CSC,15/12/2023,Scholar Travel,Award Costs,Diversity Travel,PIN068057,52.6
FCDO,CSC,19/12/2023,Scholar Allowances,Award Costs,Scholar,PIN068216,600
FCDO,CSC,19/12/2023,Scholar Allowances,Award Costs,Scholar,PIN068216,600
FCDO,CSC,19/12/2023,Scholar Allowances,Award Costs,Scholar,PIN068216,600
FCDO,CSC,19/12/2023,Scholar Allowances,Award Costs,Scholar,PIN068216,200
FCDO,CSC,19/12/2023,Scholar Allowances,Award Costs,Scholar,PIN068216,600
FCDO,CSC,19/12/2023,Scholar Allowances,Award Costs,Scholar,PIN068216,200
FCDO,CSC,19/12/2023,Scholar Allowances,Award Costs,Scholar,PIN068216,600
FCDO,CSC,19/12/2023,Scholar Allowances,Award Costs,Scholar,PIN068216,600
FCDO,CSC,19/12/2023,Scholar Allowances,Award Costs,Scholar,PIN068216,200
FCDO,CSC,19/12/2023,Scholar Allowances,Award Costs,Scholar,PIN068216,600
FCDO,CSC,19/12/2023,Scholar Allowances,Award Costs,Scholar,PIN068216,600
FCDO,CSC,19/12/2023,Scholar Allowances,Award Costs,Scholar,PIN068216,600
FCDO,CSC,19/12/2023,Scholar Allowances,Award Costs,Scholar,PIN068216,600
FCDO,CSC,19/12/2023,Scholar Allowances,Award Costs,Scholar,PIN068216,600
FCDO,CSC,19/12/2023,Scholar Allowances,Award Costs,Scholar,PIN068216,200
FCDO,CSC,19/12/2023,Visa Costs,Award Costs,Scholar,PIN068216,44
FCDO,CSC,19/12/2023,Visa Costs,Award Costs,Scholar,PIN068216,25
FCDO,CSC,19/12/2023,Visa Costs,Award Costs,Scholar,PIN068216,25
FCDO,CSC,19/12/2023,Visa Costs,Award Costs,Scholar,PIN068216,106
FCDO,CSC,19/12/2023,Visa Costs,Award Costs,Scholar,PIN068216,106
FCDO,CSC,19/12/2023,Visa Costs,Award Costs,Scholar,PIN068216,106
FCDO,CSC,19/12/2023,Visa Costs,Award Costs,Scholar,PIN068216,100
FCDO,CSC,19/12/2023,Visa Costs,Award Costs,Scholar,PIN068216,44
FCDO,CSC,19/12/2023,Visa Costs,Award Costs,Scholar,PIN068216,128
FCDO,CSC,19/12/2023,Visa Costs,Award Costs,Scholar,PIN068216,106
FCDO,CSC,19/12/2023,Visa Costs,Award Costs,Scholar,PIN068216,44
FCDO,CSC,19/12/2023,Visa Costs,Award Costs,Scholar,PIN068216,44
FCDO,CSC,19/12/2023,Visa Costs,Award Costs,Scholar,PIN068216,44
FCDO,CSC,19/12/2023,Visa Costs,Award Costs,Scholar,PIN068216,44
FCDO,CSC,19/12/2023,Visa Costs,Award Costs,Scholar,PIN068216,44
FCDO,CSC,19/12/2023,Scholar Allowances,Award Costs,Scholar,PIN068216,171.13
FCDO,CSC,19/12/2023,Scholar Allowances,Award Costs,Scholar,PIN068216,171.13
FCDO,CSC,19/12/2023,Scholar Allowances,Award Costs,Scholar,PIN068216,229.99
FCDO,CSC,19/12/2023,Scholar Allowances,Award Costs,Scholar,PIN068216,117.72
FCDO,CSC,19/12/2023,Scholar Allowances,Award Costs,Scholar,PIN068216,82.84
FCDO,CSC,19/12/2023,Scholar Allowances,Award Costs,Scholar,PIN068216,229.99
FCDO,CSC,19/12/2023,Scholar Allowances,Award Costs,Scholar,PIN068216,171.13
FCDO,CSC,19/12/2023,Scholar Allowances,Award Costs,Scholar,PIN068216,229.99
FCDO,CSC,19/12/2023,Scholar Allowances,Award Costs,Scholar,PIN068216,171.13
FCDO,CSC,19/12/2023,Scholar Allowances,Award Costs,Scholar,PIN068216,229.99
FCDO,CSC,19/12/2023,Scholar Allowances,Award Costs,Scholar,PIN068216,117.72
FCDO,CSC,19/12/2023,Scholar Allowances,Award Costs,Scholar,PIN068216,118.81
FCDO,CSC,19/12/2023,Scholar Allowances,Award Costs,Scholar,PIN068216,85
FCDO,CSC,19/12/2023,Scholar Allowances,Award Costs,Scholar,PIN068216,85
FCDO,CSC,19/12/2023,Scholar Allowances,Award Costs,Scholar,PIN068216,85
FCDO,CSC,19/12/2023,Scholar Allowances,Award Costs,Scholar,PIN068216,310
FCDO,CSC,19/12/2023,Scholar Allowances,Award Costs,Scholar,PIN068216,255
FCDO,CSC,19/12/2023,Scholar Allowances,Award Costs,Scholar,PIN068216,310
FCDO,CSC,19/12/2023,Scholar Allowances,Award Costs,Scholar,PIN068216,85
FCDO,CSC,19/12/2023,Scholar Allowances,Award Costs,Scholar,PIN068216,85
FCDO,CSC,19/12/2023,Scholar Allowances,Award Costs,Scholar,PIN068216,310
FCDO,CSC,19/12/2023,Scholar Allowances,Award Costs,Scholar,PIN068216,310
FCDO,CSC,19/12/2023,Scholar Allowances,Award Costs,Scholar,PIN068216,85
FCDO,CSC,19/12/2023,Scholar Allowances,Award Costs,Scholar,PIN068216,85
FCDO,CSC,19/12/2023,Scholar Allowances,Award Costs,Scholar,PIN068216,310
FCDO,CSC,19/12/2023,Scholar Allowances,Award Costs,Scholar,PIN068216,85
FCDO,CSC,19/12/2023,Scholar Allowances,Award Costs,Scholar,PIN068216,310
FCDO,CSC,19/12/2023,Scholar Stipend,Award Costs,Scholar,PIN068216,4041
FCDO,CSC,19/12/2023,Scholar Stipend,Award Costs,Scholar,PIN068216,4041
FCDO,CSC,19/12/2023,Scholar Stipend,Award Costs,Scholar,PIN068216,4041
FCDO,CSC,19/12/2023,Scholar Stipend,Award Costs,Scholar,PIN068216,4041
FCDO,CSC,19/12/2023,Scholar Stipend,Award Costs,Scholar,PIN068216,4041
FCDO,CSC,19/12/2023,Scholar Stipend,Award Costs,Scholar,PIN068216,4956
FCDO,CSC,19/12/2023,Scholar Stipend,Award Costs,Scholar,PIN068216,4956
FCDO,CSC,19/12/2023,Scholar Stipend,Award Costs,Scholar,PIN068216,3756.11
FCDO,CSC,19/12/2023,Scholar Stipend,Award Costs,Scholar,PIN068216,4041
FCDO,CSC,19/12/2023,Scholar Stipend,Award Costs,Scholar,PIN068216,4956
FCDO,CSC,19/12/2023,Scholar Stipend,Award Costs,Scholar,PIN068216,4041
FCDO,CSC,19/12/2023,Scholar Stipend,Award Costs,Scholar,PIN068216,4041
FCDO,CSC,19/12/2023,Scholar Stipend,Award Costs,Scholar,PIN068216,4041
FCDO,CSC,19/12/2023,Scholar Stipend,Award Costs,Scholar,PIN068216,4041
FCDO,CSC,19/12/2023,Scholar Stipend,Award Costs,Scholar,PIN068216,4041
FCDO,CSC,19/12/2023,Scholar Stipend,Award Costs,Scholar,PIN068216,4041
FCDO,CSC,19/12/2023,Scholar Allowances,Award Costs,Scholar,PIN068216,255
FCDO,CSC,19/12/2023,Bank Charges,Programme Costs,MasterCard Prepaid Management Services Ltd,PIN068216,806.18
FCDO,CSC,20/12/2023,Scholar Stipend,Award Costs,Scholar,PIN068200,663.75
FCDO,CSC,20/12/2023,Scholar Allowances,Award Costs,Scholar,PIN068200,709.1
FCDO,CSC,20/12/2023,Scholar Allowances,Award Costs,Scholar,PIN068200,709.1
FCDO,CSC,20/12/2023,Scholar Stipend,Award Costs,Scholar,PIN068200,6386.27
FCDO,CSC,20/12/2023,Scholar Stipend,Award Costs,Scholar,PIN068204,597.43
FCDO,CSC,20/12/2023,Scholar Allowances,Award Costs,Scholar,PIN068204,765.53
FCDO,CSC,20/12/2023,Scholar Allowances,Award Costs,Scholar,PIN068206,3598.45
FCDO,CSC,20/12/2023,Scholar Allowances,Award Costs,Scholar,PIN068208,570.47
FCDO,CSC,20/12/2023,Scholar Allowances,Award Costs,Scholar,PIN068208,570.47
FCDO,CSC,20/12/2023,Scholar Allowances,Award Costs,Scholar,PIN068208,2649.75
FCDO,CSC,20/12/2023,Scholar Stipend,Award Costs,Scholar,PIN068210,2444
FCDO,CSC,20/12/2023,Scholar Allowances,Award Costs,Scholar,PIN068201,870
FCDO,CSC,20/12/2023,Scholar Allowances,Award Costs,Scholar,PIN068201,870
FCDO,CSC,20/12/2023,Scholar Stipend,Award Costs,Scholar,PIN068202,2694
FCDO,CSC,20/12/2023,Scholar Allowances,Award Costs,Scholar,PIN068202,580
FCDO,CSC,20/12/2023,Scholar Allowances,Award Costs,Scholar,PIN068202,580
FCDO,CSC,20/12/2023,Scholar Allowances,Award Costs,Scholar,PIN068203,3332.93
FCDO,CSC,20/12/2023,Scholar Allowances,Award Costs,Scholar,PIN068205,1299
FCDO,CSC,20/12/2023,Scholar Allowances,Award Costs,Scholar,PIN068205,870
FCDO,CSC,20/12/2023,Scholar Allowances,Award Costs,Scholar,PIN068207,1150.71
FCDO,CSC,20/12/2023,Scholar Allowances,Award Costs,Scholar,PIN068207,770.68
FCDO,CSC,20/12/2023,Scholar Allowances,Award Costs,Scholar,PIN068207,3579.69
FCDO,CSC,21/12/2023,Scholar Engagement,Programme Costs,Association of Commonwealth Univs,PIN068058,20
FCDO,CSC,21/12/2023,Scholar Engagement,Programme Costs,Association of Commonwealth Univs,PIN068058,16450
FCDO,CSC,21/12/2023,Alumni Engagement,Programme Costs,Association of Commonwealth Univs,PIN068059,10
FCDO,CSC,21/12/2023,Alumni Engagement,Programme Costs,Association of Commonwealth Univs,PIN068059,954.76
FCDO,CSC,21/12/2023,Cash Card Transfers,Award Costs,Scholar,PIN066405,5814.06
FCDO,CSC,21/12/2023,Cash Card Transfers,Award Costs,Scholar,PIN066439,661.13
FCDO,CSC,21/12/2023,Cash Card Transfers,Award Costs,Scholar,PIN066488,1769.65
FCDO,CSC,21/12/2023,Cash Card Transfers,Award Costs,Scholar,PIN066596,1323.74
FCDO,CSC,21/12/2023,Cash Card Transfers,Award Costs,Scholar,PIN066681,694.98
FCDO,CSC,21/12/2023,Alumni Engagement,Programme Costs,Association of Commonwealth Univs,PIN066983,10
FCDO,CSC,21/12/2023,Alumni Engagement,Programme Costs,Association of Commonwealth Univs,PIN066983,829.91
FCDO,CSC,22/12/2023,Scholar Allowances,Award Costs,Royal Veterinary College,PIN068180,875
FCDO,CSC,22/12/2023,Scholar Travel,Award Costs,Royal Veterinary College,PIN068180,1994.85
FCDO,CSC,22/12/2023,Tuition Fee,Award Costs,University of London,PIN068084,3240
FCDO,CSC,22/12/2023,Tuition Fee,Award Costs,University of Kent,PIN068128,15440
FCDO,CSC,22/12/2023,Tuition Fee,Award Costs,University of Kent,PIN068126,18000
FCDO,CSC,22/12/2023,Tuition Fee,Award Costs,University of Kent,PIN068123,15440
FCDO,CSC,22/12/2023,Tuition Fee,Award Costs,University of Kent,PIN068122,14400
FCDO,CSC,22/12/2023,Commission Meetings,Admin Costs,Birkbeck College,PIN068181,664.76
FCDO,CSC,22/12/2023,Tuition Fee,Award Costs,Loughborough University,PIN068093,18000
FCDO,CSC,22/12/2023,Tuition Fee,Award Costs,Loughborough University,PIN068094,18000
FCDO,CSC,22/12/2023,Scholar Allowances,Award Costs,Ardour Healthcare,PIN068175,3780
FCDO,CSC,22/12/2023,Scholar Allowances,Award Costs,Ardour Healthcare,PIN068176,3888
FCDO,CSC,22/12/2023,Tuition Fee,Award Costs,Cardiff University,PIN068106,6560
FCDO,CSC,22/12/2023,Tuition Fee,Award Costs,Cardiff University,PIN068107,7160
FCDO,CSC,22/12/2023,Tuition Fee,Award Costs,Cardiff University,PIN068108,7160
FCDO,CSC,22/12/2023,Tuition Fee,Award Costs,Cardiff University,PIN068109,7160
FCDO,CSC,22/12/2023,Tuition Fee,Award Costs,Cardiff University,PIN068110,6560
FCDO,CSC,22/12/2023,Tuition Fee,Award Costs,University of Stirling,PIN068121,4000
FCDO,CSC,22/12/2023,Tuition Fee,Award Costs,University of Stirling,PIN068120,4000
FCDO,CSC,22/12/2023,Tuition Fee,Award Costs,University of Stirling,PIN068124,3750
FCDO,CSC,22/12/2023,Tuition Fee,Award Costs,University of Stirling,PIN068125,4000
FCDO,CSC,22/12/2023,Tuition Fee,Award Costs,University of Stirling,PIN068127,4000
FCDO,CSC,22/12/2023,Tuition Fee,Award Costs,University of Stirling,PIN068129,4000
FCDO,CSC,22/12/2023,Tuition Fee,Award Costs,University of Stirling,PIN068130,4000
FCDO,CSC,22/12/2023,Tuition Fee,Award Costs,University of Liverpool,PIN068092,14760
FCDO,CSC,22/12/2023,Tuition Fee,Award Costs,University of Liverpool,PIN068090,18000
FCDO,CSC,22/12/2023,Award Support Costs,Award Costs,University of Liverpool,PIN068091,4000
FCDO,CSC,22/12/2023,Tuition Fee,Award Costs,University of Liverpool,PIN068091,18000
FCDO,CSC,22/12/2023,Tuition Fee,Award Costs,Bangor University,PIN068113,4534
FCDO,CSC,22/12/2023,Scholar Allowances,Award Costs,Ardour Healthcare,PIN068103,6696
FCDO,CSC,22/12/2023,Tuition Fee,Award Costs,University of Aberdeen,PIN068067,1230
FCDO,CSC,22/12/2023,Tuition Fee,Award Costs,"St Mary's University, Twickenham, London",PIN068071,16350
FCDO,CSC,22/12/2023,Tuition Fee,Award Costs,Loughborough University,PIN068131,-1687.5
FCDO,CSC,22/12/2023,Tuition Fee,Award Costs,Loughborough University,PIN068132,1875
FCDO,CSC,22/12/2023,Tuition Fee,Award Costs,Loughborough University,PIN068133,1875
FCDO,CSC,22/12/2023,Tuition Fee,Award Costs,Loughborough University,PIN068134,-1687.5
FCDO,CSC,22/12/2023,Tuition Fee,Award Costs,Loughborough University,PIN068135,1875
FCDO,CSC,22/12/2023,Tuition Fee,Award Costs,Loughborough University,PIN068136,-1500
FCDO,CSC,22/12/2023,Tuition Fee,Award Costs,Loughborough University,PIN068138,1875
FCDO,CSC,22/12/2023,Tuition Fee,Award Costs,Loughborough University,PIN068143,-1500
FCDO,CSC,22/12/2023,Tuition Fee,Award Costs,University of Dundee,PIN068068,2100
FCDO,CSC,22/12/2023,Tuition Fee,Award Costs,University of Dundee,PIN068069,4200
FCDO,CSC,22/12/2023,Tuition Fee,Award Costs,University of Dundee,PIN068070,4200
FCDO,CSC,22/12/2023,Tuition Fee,Award Costs,University of Dundee,PIN068072,4200
FCDO,CSC,22/12/2023,Tuition Fee,Award Costs,University of Dundee,PIN068073,4200
FCDO,CSC,22/12/2023,Tuition Fee,Award Costs,University of Dundee,PIN068074,4200
FCDO,CSC,22/12/2023,Tuition Fee,Award Costs,University of Dundee,PIN068075,4200
FCDO,CSC,22/12/2023,Tuition Fee,Award Costs,University of Dundee,PIN068076,4200
FCDO,CSC,22/12/2023,Tuition Fee,Award Costs,University of Dundee,PIN068077,4200
FCDO,CSC,22/12/2023,Tuition Fee,Award Costs,University of Dundee,PIN068078,4200
FCDO,CSC,22/12/2023,Tuition Fee,Award Costs,University of Dundee,PIN068080,4200
FCDO,CSC,22/12/2023,Tuition Fee,Award Costs,University of Dundee,PIN068081,4200
FCDO,CSC,22/12/2023,Tuition Fee,Award Costs,University of Stirling,PIN068083,1500
FCDO,CSC,22/12/2023,Award Support Costs,Award Costs,University of Sussex,PIN068119,983
FCDO,CSC,22/12/2023,Award Support Costs,Award Costs,Scholar,PIN068117,1800
FCDO,CSC,22/12/2023,Tuition Fee,Award Costs,Scholar,PIN068117,12240
FCDO,CSC,22/12/2023,Commission Meetings,Admin Costs,Woburn House Conference Centre,PIN068182,1136.4
FCDO,CSC,22/12/2023,Scholar Allowances,Award Costs,University of Bristol,PIN068063,1325
FCDO,CSC,22/12/2023,Tuition Fee,Award Costs,University College London Fees,PIN068088,8000
FCDO,CSC,22/12/2023,Tuition Fee,Award Costs,University College London Fees,PIN068089,10000
FCDO,CSC,22/12/2023,Tuition Fee,Award Costs,Scholar,PIN068118,12600
FCDO,CSC,22/12/2023,Tuition Fee,Award Costs,Scholar,PIN068118,13600
FCDO,CSC,22/12/2023,Award Support Costs,Award Costs,Scholar,PIN068118,5000
FCDO,CSC,22/12/2023,Tuition Fee,Award Costs,Scholar,PIN068118,13600
FCDO,CSC,22/12/2023,Tuition Fee,Award Costs,University College London Fees,PIN068148,16960
FCDO,CSC,22/12/2023,Tuition Fee,Award Costs,University College London Fees,PIN068149,22500
FCDO,CSC,22/12/2023,Tuition Fee,Award Costs,University College London Fees,PIN068150,18000
FCDO,CSC,22/12/2023,Tuition Fee,Award Costs,University College London Fees,PIN068151,18000
FCDO,CSC,22/12/2023,Tuition Fee,Award Costs,University College London Fees,PIN068152,18000
FCDO,CSC,22/12/2023,Tuition Fee,Award Costs,University College London Fees,PIN068153,22500
FCDO,CSC,22/12/2023,Tuition Fee,Award Costs,University College London Fees,PIN068154,18000
FCDO,CSC,22/12/2023,Tuition Fee,Award Costs,University College London Fees,PIN068155,18000
FCDO,CSC,22/12/2023,Tuition Fee,Award Costs,University College London Fees,PIN068156,22500
FCDO,CSC,22/12/2023,Tuition Fee,Award Costs,University College London Fees,PIN068157,2612.07
FCDO,CSC,22/12/2023,Tuition Fee,Award Costs,University College London Fees,PIN068158,18000
FCDO,CSC,22/12/2023,Tuition Fee,Award Costs,University College London Fees,PIN068159,11504.66
FCDO,CSC,22/12/2023,Award Support Costs,Award Costs,University College London Fees,PIN068160,5000
FCDO,CSC,22/12/2023,Tuition Fee,Award Costs,University College London Fees,PIN068161,18000
FCDO,CSC,22/12/2023,Tuition Fee,Award Costs,University College London Fees,PIN068162,18000
FCDO,CSC,22/12/2023,Tuition Fee,Award Costs,University College London Fees,PIN068163,22500
FCDO,CSC,22/12/2023,Award Support Costs,Award Costs,University College London Fees,PIN068164,5200
FCDO,CSC,22/12/2023,Tuition Fee,Award Costs,University College London Fees,PIN068164,18000
FCDO,CSC,22/12/2023,Tuition Fee,Award Costs,University College London Fees,PIN068165,22500
FCDO,CSC,22/12/2023,Tuition Fee,Award Costs,University College London Fees,PIN068166,18000
FCDO,CSC,22/12/2023,Tuition Fee,Award Costs,University College London Fees,PIN068167,18000
FCDO,CSC,22/12/2023,Tuition Fee,Award Costs,University College London Fees,PIN068168,22500
FCDO,CSC,22/12/2023,Tuition Fee,Award Costs,University College London Fees,PIN068169,18000
FCDO,CSC,22/12/2023,Tuition Fee,Award Costs,University College London Fees,PIN068170,22500
FCDO,CSC,22/12/2023,Award Support Costs,Award Costs,University College London Fees,PIN068171,5000
FCDO,CSC,22/12/2023,Tuition Fee,Award Costs,University College London Fees,PIN068171,18000
FCDO,CSC,22/12/2023,Tuition Fee,Award Costs,University College London Fees,PIN068172,22500
FCDO,CSC,22/12/2023,Tuition Fee,Award Costs,University College London Fees,PIN068173,22500
FCDO,CSC,22/12/2023,Tuition Fee,Award Costs,University College London Fees,PIN068174,4725.86
FCDO,CSC,22/12/2023,Tuition Fee,Award Costs,University of Stirling,PIN068087,1575
FCDO,CSC,22/12/2023,Tuition Fee,Award Costs,University of Manchester,PIN068097,43200
FCDO,CSC,22/12/2023,Award Support Costs,Award Costs,Queens University Belfast,PIN068064,10000
FCDO,CSC,22/12/2023,Tuition Fee,Award Costs,Queens University Belfast,PIN068064,18000
FCDO,CSC,22/12/2023,Tuition Fee,Award Costs,Queens University Belfast,PIN068064,57300
FCDO,CSC,22/12/2023,Award Support Costs,Award Costs,The University of Warwick,PIN068095,5000
FCDO,CSC,22/12/2023,Award Support Costs,Award Costs,The University of Warwick,PIN068096,5000
FCDO,CSC,22/12/2023,Tuition Fee,Award Costs,University of Durham,PIN068102,180000
FCDO,CSC,22/12/2023,Scholar Allowances,Award Costs,Scholar,PIN068146,228
FCDO,CSC,22/12/2023,Scholar Allowances,Award Costs,Scholar,PIN068146,700
FCDO,CSC,22/12/2023,Scholar Allowances,Award Costs,Scholar,PIN068146,600
FCDO,CSC,22/12/2023,Scholar Allowances,Award Costs,Scholar,PIN068146,675
FCDO,CSC,22/12/2023,Visa Costs,Award Costs,Scholar,PIN068146,203.45
FCDO,CSC,22/12/2023,Visa Costs,Award Costs,University of St  Andrews,PIN068079,676
FCDO,CSC,22/12/2023,Award Support Costs,Award Costs,Scholar,PIN068065,3000
FCDO,CSC,22/12/2023,Tuition Fee,Award Costs,Scholar,PIN068065,13736
FCDO,CSC,22/12/2023,Award Support Costs,Award Costs,Scholar,PIN068066,5000
FCDO,CSC,22/12/2023,Tuition Fee,Award Costs,Scholar,PIN068066,13736
FCDO,CSC,22/12/2023,Tuition Fee,Award Costs,University of Surrey,PIN068140,18000
FCDO,CSC,22/12/2023,Tuition Fee,Award Costs,Leeds Beckett University,PIN068085,11200
FCDO,CSC,22/12/2023,Tuition Fee,Award Costs,The University of Edinburgh,PIN068086,7600
FCDO,CSC,22/12/2023,Scholar Allowances,Award Costs,Imperial College London,PIN068098,800
FCDO,CSC,22/12/2023,Award Support Costs,Award Costs,Imperial College London,PIN068099,5000
FCDO,CSC,22/12/2023,Tuition Fee,Award Costs,Imperial College London,PIN068099,18000
FCDO,CSC,22/12/2023,Award Support Costs,Award Costs,Imperial College London,PIN068099,5000
FCDO,CSC,22/12/2023,Tuition Fee,Award Costs,Imperial College London,PIN068099,18000
FCDO,CSC,22/12/2023,Award Support Costs,Award Costs,Imperial College London,PIN068099,5000
FCDO,CSC,22/12/2023,Tuition Fee,Award Costs,Imperial College London,PIN068099,18000
FCDO,CSC,22/12/2023,Award Support Costs,Award Costs,Imperial College London,PIN068099,5000
FCDO,CSC,22/12/2023,Tuition Fee,Award Costs,Imperial College London,PIN068099,18000
FCDO,CSC,22/12/2023,Award Support Costs,Award Costs,Imperial College London,PIN068099,5000
FCDO,CSC,22/12/2023,Tuition Fee,Award Costs,Imperial College London,PIN068099,3769.6
FCDO,CSC,22/12/2023,Award Support Costs,Award Costs,Imperial College London,PIN068099,5000
FCDO,CSC,22/12/2023,Tuition Fee,Award Costs,Imperial College London,PIN068099,18000
FCDO,CSC,22/12/2023,Tuition Fee,Award Costs,Imperial College London,PIN068099,3000
FCDO,CSC,22/12/2023,Tuition Fee,Award Costs,Imperial College London,PIN068099,18000
FCDO,CSC,22/12/2023,Tuition Fee,Award Costs,Imperial College London,PIN068099,18000
FCDO,CSC,22/12/2023,Tuition Fee,Award Costs,Imperial College London,PIN068099,18000
FCDO,CSC,22/12/2023,Tuition Fee,Award Costs,Imperial College London,PIN068099,18000
FCDO,CSC,22/12/2023,Tuition Fee,Award Costs,Imperial College London,PIN068099,18000
FCDO,CSC,22/12/2023,Tuition Fee,Award Costs,Imperial College London,PIN068099,18000
FCDO,CSC,22/12/2023,Tuition Fee,Award Costs,Imperial College London,PIN068099,18000
FCDO,CSC,22/12/2023,Tuition Fee,Award Costs,Imperial College London,PIN068099,18000
FCDO,CSC,22/12/2023,Tuition Fee,Award Costs,Imperial College London,PIN068099,9000
FCDO,CSC,22/12/2023,Tuition Fee,Award Costs,Imperial College London,PIN068100,22500
FCDO,CSC,22/12/2023,Scholar Allowances,Award Costs,Ardour Healthcare,PIN068116,6480
FCDO,CSC,22/12/2023,Fieldwork Airfare,Award Costs,Diversity Travel,PIN068183,2288.85
FCDO,CSC,22/12/2023,Scholar Travel,Award Costs,Diversity Travel,PIN068183,2079.91
FCDO,CSC,22/12/2023,Scholar Travel,Award Costs,Diversity Travel,PIN068183,1825.83
FCDO,CSC,22/12/2023,Scholar Travel,Award Costs,Diversity Travel,PIN068183,1627.99
FCDO,CSC,22/12/2023,Scholar Travel,Award Costs,Diversity Travel,PIN068183,1516.33
FCDO,CSC,22/12/2023,Scholar Travel,Award Costs,Diversity Travel,PIN068183,1511.19
FCDO,CSC,22/12/2023,Fieldwork Airfare,Award Costs,Diversity Travel,PIN068183,1507.84
FCDO,CSC,22/12/2023,Fieldwork Airfare,Award Costs,Diversity Travel,PIN068183,1504.38
FCDO,CSC,22/12/2023,Scholar Travel,Award Costs,Diversity Travel,PIN068183,1500.19
FCDO,CSC,22/12/2023,Scholar Travel,Award Costs,Diversity Travel,PIN068183,1440.14
FCDO,CSC,22/12/2023,Scholar Travel,Award Costs,Diversity Travel,PIN068183,1316.83
FCDO,CSC,22/12/2023,Scholar Travel,Award Costs,Diversity Travel,PIN068183,1223.97
FCDO,CSC,22/12/2023,Scholar Travel,Award Costs,Diversity Travel,PIN068183,1164.03
FCDO,CSC,22/12/2023,Scholar Travel,Award Costs,Diversity Travel,PIN068183,1117.43
FCDO,CSC,22/12/2023,Scholar Travel,Award Costs,Diversity Travel,PIN068183,1094.28
FCDO,CSC,22/12/2023,Scholar Travel,Award Costs,Diversity Travel,PIN068183,1085.01
FCDO,CSC,22/12/2023,Scholar Travel,Award Costs,Diversity Travel,PIN068183,1018.44
FCDO,CSC,22/12/2023,Scholar Travel,Award Costs,Diversity Travel,PIN068183,994.67
FCDO,CSC,22/12/2023,Scholar Travel,Award Costs,Diversity Travel,PIN068183,959.02
FCDO,CSC,22/12/2023,Fieldwork Airfare,Award Costs,Diversity Travel,PIN068183,906.58
FCDO,CSC,22/12/2023,Scholar Travel,Award Costs,Diversity Travel,PIN068183,888.79
FCDO,CSC,22/12/2023,Scholar Travel,Award Costs,Diversity Travel,PIN068183,885.89
FCDO,CSC,22/12/2023,Scholar Travel,Award Costs,Diversity Travel,PIN068183,884.31
FCDO,CSC,22/12/2023,Scholar Travel,Award Costs,Diversity Travel,PIN068183,877.99
FCDO,CSC,22/12/2023,Scholar Travel,Award Costs,Diversity Travel,PIN068183,723.04
FCDO,CSC,22/12/2023,Scholar Travel,Award Costs,Diversity Travel,PIN068183,568.14
FCDO,CSC,22/12/2023,Scholar Travel,Award Costs,Diversity Travel,PIN068183,51
FCDO,CSC,22/12/2023,Scholar Travel,Award Costs,Diversity Travel,PIN068183,-697.28
FCDO,CSC,22/12/2023,Award Support Costs,Award Costs,University of Manchester,PIN068101,7094
FCDO,CSC,22/12/2023,Scholar Allowances,Award Costs,Ardour Healthcare,PIN068145,3780
FCDO,CSC,22/12/2023,Tuition Fee,Award Costs,University of Hull,PIN068104,14000
FCDO,CSC,22/12/2023,Tuition Fee,Award Costs,Bangor University,PIN068114,54162
FCDO,CSC,22/12/2023,Tuition Fee,Award Costs,Bangor University,PIN068115,57863
FCDO,CSC,22/12/2023,Scholar Allowances,Award Costs,Brunel University,PIN068111,675
FCDO,CSC,22/12/2023,Scholar Allowances,Award Costs,Brunel University,PIN068111,600
FCDO,CSC,22/12/2023,Tuition Fee,Award Costs,University of Manchester,PIN068112,64800
FCDO,CSC,22/12/2023,Tuition Fee,Award Costs,University of Surrey,PIN068142,18000
FCDO,CSC,22/12/2023,Award Support Costs,Award Costs,University of Surrey,PIN068139,5000
FCDO,CSC,22/12/2023,Award Support Costs,Award Costs,University of Surrey,PIN068141,5000
FCDO,CSC,22/12/2023,Award Support Costs,Award Costs,University of Surrey,PIN068144,5000
FCDO,CSC,22/12/2023,Tuition Fee,Award Costs,University of Surrey,PIN068144,15000
FCDO,CSC,22/12/2023,Secretariat Service Provision,Programme Costs,Pau Creative Ltd.,PIN068179,1728
FCDO,CSC,22/12/2023,Engagement,Programme Costs,Pau Creative Ltd.,PIN068178,1632
FCDO,CSC,22/12/2023,Scholar Stipend,Award Costs,Scholar,PIN068185,2869.8
FCDO,CSC,22/12/2023,Scholar Stipend,Award Costs,Scholar,PIN068188,1347
FCDO,CSC,22/12/2023,Scholar Allowances,Award Costs,Scholar,PIN068189,250
FCDO,CSC,22/12/2023,Scholar Stipend,Award Costs,Scholar,PIN068189,1347
FCDO,CSC,22/12/2023,Scholar Allowances,Award Costs,Scholar,PIN068191,866
FCDO,CSC,22/12/2023,Scholar Allowances,Award Costs,Scholar,PIN068191,2694
FCDO,CSC,22/12/2023,Scholar Allowances,Award Costs,Scholar,PIN068193,600
FCDO,CSC,22/12/2023,Scholar Allowances,Award Costs,Scholar,PIN068194,576
FCDO,CSC,22/12/2023,Scholar Allowances,Award Costs,Scholar,PIN068194,1347
FCDO,CSC,22/12/2023,Scholar Allowances,Award Costs,Scholar,PIN068196,500
FCDO,CSC,22/12/2023,Scholar Allowances,Award Costs,Scholar,PIN068197,904.45
FCDO,CSC,22/12/2023,Scholar Allowances,Award Costs,Scholar,PIN068198,600
FCDO,CSC,22/12/2023,Scholar Allowances,Award Costs,Scholar,PIN068213,85
FCDO,CSC,22/12/2023,Scholar Allowances,Award Costs,Scholar,PIN068213,85
FCDO,CSC,22/12/2023,Scholar Allowances,Award Costs,Scholar,PIN068213,85
FCDO,CSC,22/12/2023,Scholar Allowances,Award Costs,Scholar,PIN068213,85
FCDO,CSC,22/12/2023,Scholar Allowances,Award Costs,Scholar,PIN068213,85
FCDO,CSC,22/12/2023,Visa Costs,Award Costs,Scholar,PIN068213,25
FCDO,CSC,22/12/2023,Visa Costs,Award Costs,Scholar,PIN068213,25
FCDO,CSC,22/12/2023,Visa Costs,Award Costs,Scholar,PIN068213,25
FCDO,CSC,22/12/2023,Visa Costs,Award Costs,Scholar,PIN068213,44
FCDO,CSC,22/12/2023,Visa Costs,Award Costs,Scholar,PIN068213,25
FCDO,CSC,22/12/2023,Scholar Allowances,Award Costs,Scholar,PIN068213,600
FCDO,CSC,22/12/2023,Scholar Allowances,Award Costs,Scholar,PIN068213,600
FCDO,CSC,22/12/2023,Scholar Allowances,Award Costs,Scholar,PIN068213,600
FCDO,CSC,22/12/2023,Scholar Allowances,Award Costs,Scholar,PIN068213,600
FCDO,CSC,22/12/2023,Scholar Allowances,Award Costs,Scholar,PIN068213,600
FCDO,CSC,22/12/2023,Scholar Allowances,Award Costs,Scholar,PIN068213,522
FCDO,CSC,22/12/2023,Scholar Stipend,Award Costs,Scholar,PIN068213,4606.72
FCDO,CSC,22/12/2023,Scholar Allowances,Award Costs,Scholar,PIN068213,522
FCDO,CSC,22/12/2023,Scholar Stipend,Award Costs,Scholar,PIN068213,4769.56
FCDO,CSC,22/12/2023,Scholar Allowances,Award Costs,Scholar,PIN068213,522
FCDO,CSC,22/12/2023,Scholar Stipend,Award Costs,Scholar,PIN068213,3756
FCDO,CSC,22/12/2023,Scholar Allowances,Award Costs,Scholar,PIN068213,522
FCDO,CSC,22/12/2023,Scholar Stipend,Award Costs,Scholar,PIN068213,4749
FCDO,CSC,22/12/2023,Scholar Allowances,Award Costs,Scholar,PIN068213,522
FCDO,CSC,22/12/2023,Scholar Stipend,Award Costs,Scholar,PIN068213,4823.84
FCDO,CSC,22/12/2023,Bank Charges,Programme Costs,MasterCard Prepaid Management Services Ltd,PIN068213,288.85
FCDO,CSC,22/12/2023,Cash Card Transfers,Award Costs,Scholar,PIN068215,-1769.65
FCDO,CSC,22/12/2023,Cash Card Transfers,Award Costs,Scholar,PIN068215,-1323.74
FCDO,CSC,22/12/2023,Cash Card Transfers,Award Costs,Scholar,PIN068215,-694.98
FCDO,CSC,22/12/2023,Cash Card Transfers,Award Costs,Scholar,PIN068215,-5814.06
FCDO,CSC,22/12/2023,Cash Card Transfers,Award Costs,Scholar,PIN068215,6336.31
FCDO,CSC,22/12/2023,Cash Card Transfers,Award Costs,Scholar,PIN068215,-6336.31
FCDO,CSC,22/12/2023,Cash Card Transfers,Award Costs,Scholar,PIN068215,-661.13
FCDO,CSC,22/12/2023,Bank Charges,Programme Costs,MasterCard Prepaid Management Services Ltd,PIN068215,63.36
FCDO,CSC,27/12/2023,Scholar Stipend,Award Costs,Scholar,PRF000298,-621.42
FCDO,CSC,28/12/2023,Scholar Stipend,Award Costs,Scholar,PRF000301,-1284.26
FCDO,CSC,11/12/2023,Scholar Allowances,Award Costs,Scholar,PIN067502,600
FCDO,CSC,11/12/2023,Scholar Allowances,Award Costs,Scholar,PIN067533,600
FCDO,CSC,11/12/2023,Scholar Allowances,Award Costs,Scholar,PIN067581,600
FCDO,CSC,11/12/2023,Scholar Allowances,Award Costs,Scholar,PIN067670,600
FCDO,CSC,11/12/2023,Scholar Allowances,Award Costs,Scholar,PIN067744,600
